Workbook

Sheet Index
A1: INDEX
A2: =Residuals!A1 -> Residuals and Averages
A3: ='T1'!A1 -> Table 1 - Summary of Demand Tariffs
A4: ='T2'!A1 -> Table 2 - Demand Tariffs
A5: ='T3'!A1 -> Table 3 - Change in HH Demand Tariffs
A6: ='T4'!A1 -> Table 4 - Embedded Export Tariff
A7: ='T5'!A1 -> Table 5 - NHH Demand Tariff Changes
A8: ='T6'!A1 -> Table 6 - Changes to Average Tariffs
A9: ='T7'!A1 -> Table 7 - Generation Wider Tariffs
A10: ='T8 & Fig 4'!A1 -> Table 8 - Generation Tariff Changes
A11: ='T9'!A1 -> Table 9 - Local Substation Tariffs
A12: ='T10'!A1 -> Table 10 - Onshore Local Circuit Tariffs
A13: ='T11'!A1 -> Table 11 - CMP203: Circuits subject to one-off charges
A14: ='T12'!A1 -> Table 12 - Offshore Local Tariffs
A15: ='T13'!A1 -> Table 13 - Contracted and Modelled TEC
A16: ='T14'!A1 -> Table 14 - Interconnectors
A17: ='T15'!A1 -> Table 15 - Allowed Revenues
A18: ='T16'!A1 -> Table 16 - Generation and Demand Revenue Proportions
A19: ='T17'!A1 -> Table 17 - Charging Bases
A20: ='T18'!A1 -> Table 18 - Residual Calculation
A21: Table xx - Small Generator Discount: Not Applicable
A22: ='T20'!A1 -> Table 20 - Demand Locational Tariffs
A23: ='T21'!A1 -> Table 21 - Breakdown of the Embedded Export Tariff
A24: ='T22'!A1 -> Table 22 - Demand Profiles
A25: ='T23'!A1 -> Table 23 - Annual Load Factors
A26: ='T24'!A1 -> Table 24 - Generic Annual Load Factors
A27: ='T25'!A1 -> Table 25 - Generation Contracted TEC Changes
A28: ='T26'!A1 -> Table 26 - Indicative National Grid Revenue Forecast
A29: ='T27'!A1 -> Table 27 - Offshore Revenues

Sheet Residuals
A1: Residuals and Averages | D1: Return to Index
A3: Residual | B3: ='T6'!B3 -> 2019/20 April | C3: ='T6'!C3 -> 2019/20 June | D3: ='T6'!D3 -> Change since last forecast
A4: Generation | B4: ='T6'!B4 -> -3.291240272 | C4: ='T6'!C4 -> -3.613060365 | D4: ='T6'!D4 -> -0.3218200935
A5: Demand | B5: ='T1'!C5 -> 50.298596 | C5: ='T1'!D5 -> 51.697066 | D5: ='T1'!E5 -> 1.39847
A7: Average Tariff | B7: =B3 -> 2019/20 April | C7: =C3 -> 2019/20 June | D7: =D3 -> Change since last forecast
A8: Generation (£/kW) | B8: ='T6'!B5 -> 6.020832078 | C8: ='T6'!C5 -> 5.611269638 | D8: ='T6'!D5 -> -0.4095624403 | E8: N.B. These generation average tariffs include local tariffs
A9: HH Demand (£/kW) | B9: ='T1'!C4 -> 49.346251 | C9: ='T1'!D4 -> 50.745111 | D9: =C9-B9 -> 1.39886
A10: NHH Demand (p/kWh) | B10: ='T1'!C13 -> 6.374706 | C10: ='T1'!D13 -> 6.557159 | D10: 0.182453
A11: Embedded Export (£/kW) | B11: ='T1'!C7 -> 14.301062 | C11: ='T1'!D7 -> 14.306876 | D11: 0.005814

Sheet T1
A1: Table 1 - Summary of Demand Tariffs | E1: Return to Index
B3: HH Tariffs | C3: 2019/20 April | D3: 2019/20 June | E3: Change
B4: Average Tariff (£/kW) | C4: 49.346251 | D4: 50.745111 | E4: 1.39886
B5: Residual (£/kW) | C5: 50.298596 | D5: 51.697066 | E5: 1.39847
B6: EET | C6: 2019/20 April | D6: 2019/20 June | E6: Change
B7: Average Tariff (£/kW) | C7: 14.301062 | D7: 14.306876 | E7: 0.005814
B8: Phased residual (£/kW) | C8: 14.65 | D8: 14.65 | E8: 0
B9: AGIC (£/kW) | C9: 3.32 | D9: 3.327268 | E9: 0.007268
B10: Embedded Export Volume (GW) | C10: 7.752808023 | D10: 7.752808023 | E10: 0
B11: Total Credit (£m) | C11: 110.8733876 | D11: 110.9184626 | E11: 0.04507499566
B12: NHH Tariffs | C12: 2019/20 April | D12: 2019/20 June | E12: Change
B13: Average (p/kWh) | C13: 6.374706 | D13: 6.557159 | E13: 0.182453

Sheet T2
A1: Table 2 - Demand Tariffs | E1: Return to Index
A3: Zone | B3: Zone Name | C3: HH Demand Tariff (£/kW) | D3: NHH Demand Tariff (p/kWh) | E3: Embedded Export Tariff (£/kW)
A4: 1 | B4: Northern Scotland | C4: 21.117249 | D4: 2.842582 | E4: 0
A5: 2 | B5: Southern Scotland | C5: 28.797132 | D5: 3.769871 | E5: 0
A6: 3 | B6: Northern | C6: 41.292129 | D6: 5.245346 | E6: 7.572331
A7: 4 | B7: North West | C7: 48.128953 | D7: 6.240251 | E7: 14.409155
A8: 5 | B8: Yorkshire | C8: 48.421349 | D8: 6.162897 | E8: 14.701551
A9: 6 | B9: N Wales & Mersey | C9: 49.711398 | D9: 6.267104 | E9: 15.9916
A10: 7 | B10: East Midlands | C10: 51.861094 | D10: 6.794004 | E10: 18.141296
A11: 8 | B11: Midlands | C11: 53.158467 | D11: 7.008581 | E11: 19.438669
A12: 9 | B12: Eastern | C12: 53.903967 | D12: 7.51831 | E12: 20.184169
A13: 10 | B13: South Wales | C13: 50.052639 | D13: 5.904038 | E13: 16.332841
A14: 11 | B14: South East | C14: 56.648128 | D14: 8.028688 | E14: 22.92833
A15: 12 | B15: London | C15: 59.762093 | D15: 6.3384 | E15: 26.042296
A16: 13 | B16: Southern | C16: 57.828962 | D16: 7.65195 | E16: 24.109165
A17: 14 | B17: South Western | C17: 56.141034 | D17: 7.836469 | E17: 22.421236
A19: Residual charge for demand: | C19: 51.69706577

Sheet T3
A1: Table 3 - Change in HH Demand Tariffs | F1: Return to Index
A3: Zone | B3: Zone Name | C3: 2019/20 April (£/kW) | D3: 2019/20 June (£/kW) | E3: Change (£/kW) | F3: Change in Residual (£/kW)
A4: 1 | B4: Northern Scotland | C4: 19.737006 | D4: 21.117249 | E4: =D4-C4 -> 1.380243 | F4: 1.398469774
A5: 2 | B5: Southern Scotland | C5: 27.418724 | D5: 28.797132 | E5: =D5-C5 -> 1.378408 | F5: 1.398469774
A6: 3 | B6: Northern | C6: 39.892709 | D6: 41.292129 | E6: 1.39942 | F6: 1.398469774
A7: 4 | B7: North West | C7: 46.722382 | D7: 48.128953 | E7: 1.406571 | F7: 1.398469774
A8: 5 | B8: Yorkshire | C8: 47.014046 | D8: 48.421349 | E8: 1.407303 | F8: 1.398469774
A9: 6 | B9: N Wales & Mersey | C9: 48.298681 | D9: 49.711398 | E9: 1.412717 | F9: 1.398469774
A10: 7 | B10: East Midlands | C10: 50.452344 | D10: 51.861094 | E10: 1.40875 | F10: 1.398469774
A11: 8 | B11: Midlands | C11: 51.752366 | D11: 53.158467 | E11: 1.406101 | F11: 1.398469774
A12: 9 | B12: Eastern | C12: 52.491085 | D12: 53.903967 | E12: 1.412882 | F12: 1.398469774
A13: 10 | B13: South Wales | C13: 48.660552 | D13: 50.052639 | E13: 1.392087 | F13: 1.398469774
A14: 11 | B14: South East | C14: 55.225293 | D14: 56.648128 | E14: 1.422835 | F14: 1.398469774
A15: 12 | B15: London | C15: 58.34778 | D15: 59.762093 | E15: 1.414313 | F15: 1.398469774
A16: 13 | B16: Southern | C16: 56.468265 | D16: 57.828962 | E16: 1.360697 | F16: 1.398469774
A17: 14 | B17: South Western | C17: 54.806629 | D17: 56.141034 | E17: 1.334405 | F17: 1.398469774
A20: Zone | B20: Peak (£/kW) | C20: Year Round (£/kW) | D20: Residual £/kW | E20: Small Gen Discount (£/kW) | F20: 2019/20 June (£/kW)
A21: 1 | B21: -2.041245073 | C21: -28.53857155 | D21: 51.69706577 | E21: 0 | F21: =ROUND(SUM(B21+C21+D21+E21),6) -> 21.117249
A22: 2 | B22: -2.244735525 | C22: -20.65519853 | D22: 51.69706577 | E22: 0 | F22: =ROUND(SUM(B22+C22+D22+E22),6) -> 28.797132
A23: 3 | B23: -3.578833101 | C23: -6.826103973 | D23: 51.69706577 | E23: 0 | F23: 41.292129
A24: 4 | B24: -1.124121008 | C24: -2.443991968 | D24: 51.69706577 | E24: 0 | F24: 48.128953
A25: 5 | B25: -2.839205956 | C25: -0.4365107435 | D25: 51.69706577 | E25: 0 | F25: 48.421349
A26: 6 | B26: -2.259558026 | C26: 0.2738900317 | D26: 51.69706577 | E26: 0 | F26: 49.711398
A27: 7 | B27: -2.158902211 | C27: 2.322930151 | D27: 51.69706577 | E27: 0 | F27: 51.861094
A28: 8 | B28: -1.436306543 | C28: 2.897707358 | D28: 51.69706577 | E28: 0 | F28: 53.158467
A29: 9 | B29: 1.359902705 | C29: 0.8469983321 | D29: 51.69706577 | E29: 0 | F29: 53.903967
A30: 10 | B30: -6.144324238 | C30: 4.499897227 | D30: 51.69706577 | E30: 0 | F30: 50.052639
A31: 11 | B31: 4.213771583 | C31: 0.7372906934 | D31: 51.69706577 | E31: 0 | F31: 56.648128
A32: 12 | B32: 5.656189742 | C32: 2.408837864 | D32: 51.69706577 | E32: 0 | F32: 59.762093
A33: 13 | B33: 1.816924529 | C33: 4.314971979 | D33: 51.69706577 | E33: 0 | F33: 57.828962
A34: 14 | B34: -0.9559201924 | C34: 5.399888371 | D34: 51.69706577 | E34: 0 | F34: 56.141034

Sheet T4
A1: Table 4 - Embedded Export Tariff | E1: Return to Index
A4: Zone | B4: Zone Name | C4: 2019/20 April (£/kW) | D4: 2019/20 June (£/kW) | E4: Change (£/kW)
A5: 1 | B5: Northern Scotland | C5: 0 | D5: 0 | E5: =D5-C5 -> 0
A6: 2 | B6: Southern Scotland | C6: 0 | D6: 0 | E6: =D6-C6 -> 0
A7: 3 | B7: Northern | C7: 7.564113 | D7: 7.572331 | E7: 0.008218
A8: 4 | B8: North West | C8: 14.393786 | D8: 14.409155 | E8: 0.015369
A9: 5 | B9: Yorkshire | C9: 14.685451 | D9: 14.701551 | E9: 0.0161
A10: 6 | B10: N Wales & Mersey | C10: 15.970085 | D10: 15.9916 | E10: 0.021515
A11: 7 | B11: East Midlands | C11: 18.123748 | D11: 18.141296 | E11: 0.017548
A12: 8 | B12: Midlands | C12: 19.42377 | D12: 19.438669 | E12: 0.014899
A13: 9 | B13: Eastern | C13: 20.162489 | D13: 20.184169 | E13: 0.02168
A14: 10 | B14: South Wales | C14: 16.331956 | D14: 16.332841 | E14: 0.000885
A15: 11 | B15: South East | C15: 22.896697 | D15: 22.92833 | E15: 0.031633
A16: 12 | B16: London | C16: 26.019184 | D16: 26.042296 | E16: 0.023112
A17: 13 | B17: Southern | C17: 24.139669 | D17: 24.109165 | E17: -0.030504
A18: 14 | B18: South Western | C18: 22.478033 | D18: 22.421236 | E18: -0.056797
A20: Zone | B20: EET Locational £/kW | C20: AGIC £/kW | D20: 2019/20 Phased Residual £/kW | E20: Final Tariff £/kW | F20: EET Revenue £m
A21: 1 | B21: -30.57981663 | C21: 3.327268 | D21: 14.65 | E21: 0 | F21: 0
A22: 2 | B22: -22.89993406 | C22: 3.327268 | D22: 14.65 | E22: 0 | F22: 0
A23: 3 | B23: -10.40493707 | C23: 3.327268 | D23: 14.65 | E23: 7.572331 | F23: 3.321596921
A24: 4 | B24: -3.568112976 | C24: 3.327268 | D24: 14.65 | E24: 14.409155 | F24: 5.909482761
A25: 5 | B25: -3.2757167 | C25: 3.327268 | D25: 14.65 | E25: 14.701551 | F25: 11.87199867
A26: 6 | B26: -1.985667994 | C26: 3.327268 | D26: 14.65 | E26: 15.9916 | F26: 8.802404149
A27: 7 | B27: 0.1640279401 | C27: 3.327268 | D27: 14.65 | E27: 18.141296 | F27: 11.5957966
A28: 8 | B28: 1.461400815 | C28: 3.327268 | D28: 14.65 | E28: 19.438669 | F28: 6.513742304
A29: 9 | B29: 2.206901037 | C29: 3.327268 | D29: 14.65 | E29: 20.184169 | F29: 16.26223327
A30: 10 | B30: -1.644427011 | C30: 3.327268 | D30: 14.65 | E30: 16.332841 | F30: 8.324858308
A31: 11 | B31: 4.951062276 | C31: 3.327268 | D31: 14.65 | E31: 22.92833 | F31: 9.421791532
A32: 12 | B32: 8.065027606 | C32: 3.327268 | D32: 14.65 | E32: 26.042296 | F32: 4.44883267
A33: 13 | B33: 6.131896508 | C33: 3.327268 | D33: 14.65 | E33: 24.109165 | F33: 16.69978804
A34: 14 | B34: 4.443968179 | C34: 3.327268 | D34: 14.65 | E34: 22.421236 | F34: 7.745937404

Sheet T5
A1: Table 5 - NHH Demand Tariff Changes | D1: Return to Index
A3: Zone | B3: Zone Name | C3: 2019/20 April (p/kWh) | D3: 2019/20 June (p/kWh) | E3: Change (p/kWh)
A4: 1 | B4: Northern Scotland | C4: 2.656788 | D4: 2.842582 | E4: =D4-C4 -> 0.185794
A5: 2 | B5: Southern Scotland | C5: 3.589422 | D5: 3.769871 | E5: =D5-C5 -> 0.180449
A6: 3 | B6: Northern | C6: 5.067577 | D6: 5.245346 | E6: 0.177769
A7: 4 | B7: North West | C7: 6.057879 | D7: 6.240251 | E7: 0.182372
A8: 5 | B8: Yorkshire | C8: 5.983781 | D8: 6.162897 | E8: 0.179116
A9: 6 | B9: N Wales & Mersey | C9: 6.089003 | D9: 6.267104 | E9: 0.178101
A10: 7 | B10: East Midlands | C10: 6.609453 | D10: 6.794004 | E10: 0.184551
A11: 8 | B11: Midlands | C11: 6.823196 | D11: 7.008581 | E11: 0.185385
A12: 9 | B12: Eastern | C12: 7.321247 | D12: 7.51831 | E12: 0.197063
A13: 10 | B13: South Wales | C13: 5.739832 | D13: 5.904038 | E13: 0.164206
A14: 11 | B14: South East | C14: 7.827031 | D14: 8.028688 | E14: 0.201657
A15: 12 | B15: London | C15: 6.188397 | D15: 6.3384 | E15: 0.150003
A16: 13 | B16: Southern | C16: 7.471902 | D16: 7.65195 | E16: 0.180048
A17: 14 | B17: South Western | C17: 7.650205 | D17: 7.836469 | E17: 0.186264

Sheet T6
A1: Table 6 - Changes to Average Tariffs | F1: Return to Index
A3: Generation Tariffs (£/kW) | B3: 2019/20 April | C3: 2019/20 June | D3: Change since last forecast
A4: Residual | B4: -3.291240272 | C4: -3.613060365 | D4: =C4-B4 -> -0.3218200935
A5: Average Generation Tariff | B5: 6.020832078 | C5: 5.611269638 | D5: =C5-B5 -> -0.4095624403 | E5: N.B. These generation average tariffs include local tariffs

Sheet T7
A1: Table 7 - Generation Wider Tariffs | I1: Return to Index
G2: Example tariffs for a generator of each technology type:
C3: System Peak | D3: Shared Year Round | E3: Not Shared Year Round | F3: Residual | G3: Conventional Carbon 80% | H3: Conventional Low Carbon 80% | I3: Intermittent 40%
A4: Zone | B4: Zone Name | C4: Tariff (£/kW) | D4: Tariff (£/kW) | E4: Tariff (£/kW) | F4: Tariff (£/kW) | G4: Tariff (£/kW) | H4: Tariff (£/kW) | I4: Tariff (£/kW)
A5: 1 | B5: North Scotland | C5: 2.633478 | D5: 17.866048 | E5: 16.290564 | F5: -3.61306 | G5: 26.3457076 | H5: 29.6038204 | I5: 19.8239232
A6: 2 | B6: East Aberdeenshire | C6: 4.85642 | D6: 10.389876 | E6: 16.290564 | F6: -3.61306 | G6: 22.587712 | H6: 25.8458248 | I6: 16.8334544
A7: 3 | B7: Western Highlands | C7: 2.066205 | D7: 18.018719 | E7: 16.300922 | F7: -3.61306 | G7: 25.9088578 | H7: 29.1690422 | I7: 19.8953496
A8: 4 | B8: Skye and Lochalsh | C8: -4.050899 | D8: 18.018719 | E8: 16.185831 | F8: -3.61306 | G8: 19.699681 | H8: 22.9368472 | I8: 19.7802586
A9: 5 | B9: Eastern Grampian and Tayside | C9: 3.028972 | D9: 15.552842 | E9: 15.695182 | F9: -3.61306 | G9: 24.4143312 | H9: 27.5533676 | I9: 18.3032588
A10: 6 | B10: Central Grampian | C10: 3.703503 | D10: 14.842849 | E10: 15.388225 | F10: -3.61306 | G10: 24.2753022 | H10: 27.3529472 | I10: 17.7123046
A11: 7 | B11: Argyll | C11: 3.318511 | D11: 11.76813 | E11: 25.125685 | F11: -3.61306 | G11: 29.220503 | H11: 34.24564 | I11: 26.219877
A12: 8 | B12: The Trossachs | C12: 3.605887 | D12: 11.76813 | E12: 13.992947 | F12: -3.61306 | G12: 20.6016886 | H12: 23.400278 | I12: 15.087139
A13: 9 | B13: Stirlingshire and Fife | C13: 2.379372 | D13: 8.968928 | E13: 13.155213 | F13: -3.61306 | G13: 16.4656248 | H13: 19.0966674 | I13: 13.1297242
A14: 10 | B14: South West Scotlands | C14: 2.432017 | D14: 9.529142 | E14: 13.296532 | F14: -3.61306 | G14: 17.0794962 | H14: 19.7388026 | I14: 13.4951288
A15: 11 | B15: Lothian and Borders | C15: 3.649624 | D15: 9.529142 | E15: 7.437838 | F15: -3.61306 | G15: 13.610148 | H15: 15.0977156 | I15: 7.6364348
A16: 12 | B16: Solway and Cheviot | C16: 1.965527 | D16: 5.394191 | E16: 7.50501 | F16: -3.61306 | G16: 8.6718278 | H16: 10.1728298 | I16: 6.0496264
A17: 13 | B17: North East England | C17: 3.885956 | D17: 3.01515 | E17: 3.943079 | F17: -3.61306 | G17: 5.8394792 | H17: 6.628095 | I17: 1.536079
A18: 14 | B18: North Lancashire and The Lakes | C18: 1.590933 | D18: 3.01515 | E18: 2.657327 | F18: -3.61306 | G18: 2.5158546 | H18: 3.04732 | I18: 0.250327
A19: 15 | B19: South Lancashire, Yorkshire and Humber | C19: 4.476969 | D19: 0.783197 | E19: 0.117564 | F19: -3.61306 | G19: 1.5845178 | H19: 1.6080306 | I19: -3.1822172
A20: 16 | B20: North Midlands and North Wales | C20: 3.942682 | D20: -0.83049 | E20: 0 | F20: -3.61306 | G20: -0.33477 | H20: -0.33477 | I20: -3.945256
A21: 17 | B21: South Lincolnshire and North Norfolk | C21: 2.11947 | D21: -0.474296 | E21: 0 | F21: -3.61306 | G21: -1.8730268 | H21: -1.8730268 | I21: -3.8027784
A22: 18 | B22: Mid Wales and The Midlands | C22: 1.208746 | D22: -0.24253 | E22: 0 | F22: -3.61306 | G22: -2.598338 | H22: -2.598338 | I22: -3.710072
A23: 19 | B23: Anglesey and Snowdon | C23: 4.440111 | D23: -0.650476 | E23: 0 | F23: -3.61306 | G23: 0.3066702 | H23: 0.3066702 | I23: -3.8732504
A24: 20 | B24: Pembrokeshire | C24: 9.187142 | D24: -4.517101 | E24: 0 | F24: -3.61306 | G24: 1.9604012 | H24: 1.9604012 | I24: -5.4199004
A25: 21 | B25: South Wales & Gloucester | C25: 6.185924 | D25: -4.490373 | E25: 0 | F25: -3.61306 | G25: -1.0194344 | H25: -1.0194344 | I25: -5.4092092
A26: 22 | B26: Cotswold | C26: 3.040964 | D26: 2.258661 | E26: -6.725791 | F26: -3.61306 | G26: -4.1458 | H26: -5.4909582 | I26: -9.4353866
A27: 23 | B27: Central London | C27: -5.76506 | D27: 2.258661 | E27: -6.613056 | F27: -3.61306 | G27: -12.861636 | H27: -14.1842472 | I27: -9.3226516
A28: 24 | B28: Essex and Kent | C28: -4.08963 | D28: 2.258661 | E28: 0 | F28: -3.61306 | G28: -5.8957612 | H28: -5.8957612 | I28: -2.7095956
A29: 25 | B29: Oxfordshire, Surrey and Sussex | C29: -1.567781 | D29: -2.95112 | E29: 0 | F29: -3.61306 | G29: -7.541737 | H29: -7.541737 | I29: -4.793508
A30: 26 | B30: Somerset and Wessex | C30: -1.407731 | D30: -4.113898 | E30: 0 | F30: -3.61306 | G30: -8.3119094 | H30: -8.3119094 | I30: -5.2586192
A31: 27 | B31: West Devon and Cornwall | C31: 0.103405 | D31: -5.677704 | E31: 0 | F31: -3.61306 | G31: -8.0518182 | H31: -8.0518182 | I31: -5.8841416

Sheet T8 & Fig 4
A1: Table 8 - Generation Tariff Changes | L1: Return to Index
A4: Wider Generation Tariffs (£/kW)
C5: Conventional Carbon 80% | F5: Conventional Low Carbon 80% | I5: Intermittent 40% | L5: Change in Residual (£/kW)
A6: Zone | B6: Zone Name | C6: 2019/20 April (£/kW) | D6: 2019/20 June (£/kW) | E6: Change (£/kW) | F6: 2019/20 April (£/kW) | G6: 2019/20 June (£/kW) | H6: Change (£/kW) | I6: 2019/20 April (£/kW) | J6: 2019/20 June (£/kW) | K6: Change (£/kW)
A7: 1 | B7: North Scotland | C7: 26.657823 | D7: 26.3457076 | E7: =D7-C7 -> -0.3121154 | F7: 29.926952 | G7: 29.6038204 | H7: =G7-F7 -> -0.3231316 | I7: 20.168315 | J7: 19.8239232 | K7: =J7-I7 -> -0.3443918 | L7: -0.3218203652
A8: 2 | B8: East Aberdeenshire | C8: 22.8946422 | D8: 22.587712 | E8: =D8-C8 -> -0.3069302 | F8: 26.1637712 | G8: 25.8458248 | H8: =G8-F8 -> -0.3179464 | I8: 17.1753986 | J8: 16.8334544 | K8: =J8-I8 -> -0.3419442 | L8: -0.3218203652
A9: 3 | B9: Western Highlands | C9: 26.220525 | D9: 25.9088578 | E9: -0.3116672 | F9: 29.49171 | G9: 29.1690422 | H9: -0.3226678 | I9: 20.239207 | J9: 19.8953496 | K9: -0.3438574 | L9: -0.3218203652
A10: 4 | B10: Skye and Lochalsh | C10: 20.010278 | D10: 19.699681 | E10: -0.310597 | F10: 23.258369 | G10: 22.9368472 | H10: -0.3215218 | I10: 20.123737 | J10: 19.7802586 | K10: -0.3434784 | L10: -0.3218203652
A11: 5 | B11: Eastern Grampian and Tayside | C11: 24.734248 | D11: 24.4143312 | E11: -0.3199168 | F11: 27.8838226 | G11: 27.5533676 | H11: -0.330455 | I11: 18.6410378 | J11: 18.3032588 | K11: -0.337779 | L11: -0.3218203652
A12: 6 | B12: Central Grampian | C12: 24.5949008 | D12: 24.2753022 | E12: -0.3195986 | F12: 27.6796588 | G12: 27.3529472 | H12: -0.3267116 | I12: 18.0171124 | J12: 17.7123046 | K12: -0.3048078 | L12: -0.3218203652
A13: 7 | B13: Argyll | C13: 31.033503 | D13: 29.220503 | E13: -1.813 | F13: 36.4808634 | G13: 34.24564 | H13: -2.2352234 | I13: 28.6297472 | J13: 26.219877 | K13: -2.4098702 | L13: -0.3218203652
A14: 8 | B14: The Trossachs | C14: 20.9061914 | D14: 20.6016886 | E14: -0.3045028 | F14: 23.7185894 | G14: 23.400278 | H14: -0.3183114 | I14: 15.4549352 | J14: 15.087139 | K14: -0.3677962 | L14: -0.3218203652
A15: 9 | B15: Stirlingshire and Fife | C15: 16.773731 | D15: 16.4656248 | E15: -0.3081062 | F15: 19.4112932 | G15: 19.0966674 | H15: -0.3146258 | I15: 13.4610786 | J15: 13.1297242 | K15: -0.3313544 | L15: -0.3218203652
A16: 10 | B16: South West Scotlands | C16: 17.365251 | D16: 17.0794962 | E16: -0.2857548 | F16: 20.031467 | G16: 19.7388026 | H16: -0.2926644 | I16: 13.821 | J16: 13.4951288 | K16: -0.3258712 | L16: -0.3218203652
A17: 11 | B17: Lothian and Borders | C17: 13.941138 | D17: 13.610148 | E17: -0.33099 | F17: 15.440879 | G17: 15.0977156 | H17: -0.3431634 | I17: 7.988625 | J17: 7.6364348 | K17: -0.3521902 | L17: -0.3218203652
A18: 12 | B18: Solway and Cheviot | C18: 9.0345644 | D18: 8.6718278 | E18: -0.3627366 | F18: 10.5450612 | G18: 10.1728298 | H18: -0.3722314 | I18: 6.4195036 | J18: 6.0496264 | K18: -0.3698772 | L18: -0.3218203652
A19: 13 | B19: North East England | C19: 6.1632348 | D19: 5.8394792 | E19: -0.3237556 | F19: 6.9527206 | G19: 6.628095 | H19: -0.3246256 | I19: 1.8599878 | J19: 1.536079 | K19: -0.3239088 | L19: -0.3218203652
A20: 14 | B20: North Lancashire and The Lakes | C20: 2.8427736 | D20: 2.5158546 | E20: -0.326919 | F20: 3.3760886 | G20: 3.04732 | H20: -0.3287686 | I20: 0.5791338 | J20: 0.250327 | K20: -0.3288068 | L20: -0.3218203652
A21: 15 | B21: South Lancashire, Yorkshire and Humber | C21: 1.9143588 | D21: 1.5845178 | E21: -0.329841 | F21: 1.9379014 | G21: 1.6080306 | H21: -0.3298708 | I21: -2.8580078 | J21: -3.1822172 | K21: -0.3242094 | L21: -0.3218203652
A22: 16 | B22: North Midlands and North Wales | C22: -0.0021356 | D22: -0.33477 | E22: -0.3326344 | F22: -0.0021356 | G22: -0.33477 | H22: -0.3326344 | I22: -3.6197848 | J22: -3.945256 | K22: -0.3254712 | L22: -0.3218203652
A23: 17 | B23: South Lincolnshire and North Norfolk | C23: -1.5402922 | D23: -1.8730268 | E23: -0.3327346 | F23: -1.5402922 | G23: -1.8730268 | H23: -0.3327346 | I23: -3.4778256 | J23: -3.8027784 | K23: -0.3249528 | L23: -0.3218203652
A24: 18 | B24: Mid Wales and The Midlands | C24: -2.2677172 | D24: -2.598338 | E24: -0.3306208 | F24: -2.2677172 | G24: -2.598338 | H24: -0.3306208 | I24: -3.3875396 | J24: -3.710072 | K24: -0.3225324 | L24: -0.3218203652
A25: 19 | B25: Anglesey and Snowdon | C25: 0.642934 | D25: 0.3066702 | E25: -0.3362638 | F25: 0.642934 | G25: 0.3066702 | H25: -0.3362638 | I25: -3.545538 | J25: -3.8732504 | K25: -0.3277124 | L25: -0.3218203652
A26: 20 | B26: Pembrokeshire | C26: 2.278025 | D26: 1.9604012 | E26: -0.3176238 | F26: 2.278025 | G26: 1.9604012 | H26: -0.3176238 | I26: -5.098194 | J26: -5.4199004 | K26: -0.3217064 | L26: -0.3218203652
A27: 21 | B27: South Wales & Gloucester | C27: -0.7046598 | D27: -1.0194344 | E27: -0.3147746 | F27: -0.7046598 | G27: -1.0194344 | H27: -0.3147746 | I27: -5.0880584 | J27: -5.4092092 | K27: -0.3211508 | L27: -0.3218203652
A28: 22 | B28: Cotswold | C28: -3.8333348 | D28: -4.1458 | E28: -0.3124652 | F28: -5.1814886 | G28: -5.4909582 | H28: -0.3094696 | I28: -9.1236778 | J28: -9.4353866 | K28: -0.3117088 | L28: -0.3218203652
A29: 23 | B29: Central London | C29: -12.526723 | D29: -12.861636 | E29: -0.334913 | F29: -13.8498136 | G29: -14.1842472 | H29: -0.3344336 | I29: -8.9983618 | J29: -9.3226516 | K29: -0.3242898 | L29: -0.3218203652
A30: 24 | B30: Essex and Kent | C30: -5.5568786 | D30: -5.8957612 | E30: -0.3388826 | F30: -5.5568786 | G30: -5.8957612 | H30: -0.3388826 | I30: -2.3829088 | J30: -2.7095956 | K30: -0.3266868 | L30: -0.3218203652
A31: 25 | B31: Oxfordshire, Surrey and Sussex | C31: -7.1996666 | D31: -7.541737 | E31: -0.3420704 | F31: -7.1996666 | G31: -7.541737 | H31: -0.3420704 | I31: -4.4847828 | J31: -4.793508 | K31: -0.3087252 | L31: -0.3218203652
A32: 26 | B32: Somerset and Wessex | C32: -8.0751812 | D32: -8.3119094 | E32: -0.2367282 | F32: -8.0751812 | G32: -8.3119094 | H32: -0.2367282 | I32: -4.9793556 | J32: -5.2586192 | K32: -0.2792636 | L32: -0.3218203652
A33: 27 | B33: West Devon and Cornwall | C33: -7.8182494 | D33: -8.0518182 | E33: -0.2335688 | F33: -7.8182494 | G33: -8.0518182 | H33: -0.2335688 | I33: -5.5810552 | J33: -5.8841416 | K33: -0.3030864 | L33: -0.3218203652
A35: Figure 4 - Variation in Generation Zonal Tariffs

Sheet T9
A1: Table 9 - Local Substation Tariffs | E1: Return to Index
A3: 2019/20 Local Substation Tariff (£/kW)
A4: Substation Rating | B4: Connection Type | C4: 132kV | D4: 275kV | E4: 400kV
A6: <1320 MW | B6: No redundancy | C6: 0.197964 | D6: 0.113248 | E6: 0.081598
A7: <1320 MW | B7: Redundancy | C7: 0.436098 | D7: 0.269817 | E7: 0.196232
A8: >=1320 MW | B8: No redundancy | C8: 0 | D8: 0.355083 | E8: 0.256797
A9: >=1320 MW | B9: Redundancy | C9: 0 | D9: 0.582955 | E9: 0.425509

Sheet T10
A1: Table 10 - Onshore Local Circuit Tariffs | H1: Return to Index
A3: Substation Name | B3: (£/kW) | C3: Substation Name | D3: (£/kW) | E3: Substation Name | F3: (£/kW)
A4: Achruach | B4: 4.232856 | C4: Dunlaw Extension | D4: 1.47975 | E4: Lochay | F4: 0.36082
A5: Aigas | B5: 0.644872 | C5: Dunhill | D5: 1.412272 | E5: Luichart | F5: 0.565474
A6: An Suidhe | B6: -0.94107 | C6: Dumnaglass | D6: 1.830606 | E6: Mark Hill | F6: 0.863311
A7: Arecleoch | B7: 2.047871 | C7: Edinbane | D7: 6.748067 | E7: Marchwood | F7: 0.376314
A8: Baglan Bay | B8: 0.750115 | C8: Ewe Hill | D8: 1.354956 | E8: Millennium Wind | F8: 1.800785
A9: Beinneun Wind Farm | B9: 1.480947 | C9: Fallago | D9: 0.199323 | E9: Moffat | F9: 0.169407
A10: Bhlaraidh Wind Farm | B10: 0.648822 | C10: Farr | D10: 3.515507 | E10: Mossford | F10: 0.441921
A11: Black Hill | B11: 1.531255 | C11: Fernoch | D11: 4.337104 | E11: Nant | F11: -1.211288
A12: BlackCraig Wind Farm | B12: 6.206946 | C12: Ffestiniogg | D12: 0.249457 | E12: Necton | F12: -0.362164
A13: Black Law | B13: 1.722917 | C13: Finlarig | D13: 0.315718 | E13: Rhigos | F13: 0.10037
A14: BlackLaw Extension | B14: 3.653668 | C14: Foyers | D14: 0.742448 | E14: Rocksavage | F14: 0.017456
A15: Carrington | B15: -0.032834 | C15: Galawhistle | D15: 1.458315 | E15: Saltend | F15: 0.33621
A16: Clyde (North) | B16: 0.108132 | C16: Glendoe | D16: 1.813672 | E16: South Humber Bank | F16: 0.93423
A17: Clyde (South) | B17: 0.125049 | C17: Glenglass | D17: 2.938353 | E17: Spalding | F17: 0.277642
A18: Corriegarth | B18: 3.108511 | C18: Gordonbush | D18: 0.196905 | E18: Strathbrora | F18: 0.069949
A19: Corriemoillie | B19: 1.64046 | C19: Griffin Wind | D19: 9.566769 | E19: Stronelairg | F19: 1.417537
A20: Coryton | B20: 0.051513 | C20: Hadyard Hill | D20: 2.729153 | E20: Strathy Wind | F20: 2.028917
A21: Cruachan | B21: 1.865376 | C21: Harestanes | D21: 2.474147 | E21: Wester Dod | F21: 0.368855
A22: Crystal Rig | B22: 0.033342 | C22: Hartlepool | D22: 0.592021 | E22: Whitelee | F22: 0.104644
A23: Culligran | B23: 1.708927 | C23: Hedon | D23: 0.178419 | E23: Whitelee Extension | F23: 0.29091
A24: Deanie | B24: 2.807523 | C24: Invergarry | D24: 1.399007 | E24: Gills Bay | F24: 2.483116
A25: Dersalloch | B25: 2.375095 | C25: Kilgallioch | D25: 1.037718 | E25: Kype Muir | F25: 1.462492
A26: Didcot | B26: 0.515265 | C26: Kilmorack | D26: 0.194729 | E26: Middle Muir | F26: 1.954443
A27: Dinorwig | B27: 2.3657 | C27: Langage | D27: 0.648563 | E27: Dorenell | F27: 2.069263
A28: Millennium South | B28: 0.928492 | C28: Aberdeen Bay | D28: 2.570844 | E28: Killingholme | F28: 0.700742
A29: Middleton | B29: 0.109785

Sheet T10 A-Z
A1: Table 10 - Onshore Local Circuit Tariffs | H1: Return to Index
A3: Substation Name | B3: (£/kW) | C3: Substation Name | D3: (£/kW) | E3: Substation Name | F3: (£/kW)
A4: Achruach | B4: =IF(ISNA(VLOOKUP(A4,'T10'!$A$4:$B$29,2,0)),IF(ISNA(VLOOKUP(A4,'T10'!$C$4:$D$29,2,0)),VLOOKUP(A4,'T10'!$E$4:$F$29,2,0),VLOOKUP(A4,'T10'!$C$4:$D$29,2,0)),VLOOKUP(A4,'T10'!$A$4:$B$29,2,0)) -> 4.232856 | C4: Dumnaglass | D4: =IF(ISNA(VLOOKUP(C4,'T10'!$A$4:$B$29,2,0)),IF(ISNA(VLOOKUP(C4,'T10'!$C$4:$D$29,2,0)),VLOOKUP(C4,'T10'!$E$4:$F$29,2,0),VLOOKUP(C4,'T10'!$C$4:$D$29,2,0)),VLOOKUP(C4,'T10'!$A$4:$B$29,2,0)) -> 1.830606 | E4: Langage | F4: =IF(ISNA(VLOOKUP(E4,'T10'!$A$4:$B$29,2,0)),IF(ISNA(VLOOKUP(E4,'T10'!$C$4:$D$29,2,0)),VLOOKUP(E4,'T10'!$E$4:$F$29,2,0),VLOOKUP(E4,'T10'!$C$4:$D$29,2,0)),VLOOKUP(E4,'T10'!$A$4:$B$29,2,0)) -> 0.648563
A5: Aberdeen Bay | B5: =IF(ISNA(VLOOKUP(A5,'T10'!$A$4:$B$29,2,0)),IF(ISNA(VLOOKUP(A5,'T10'!$C$4:$D$29,2,0)),VLOOKUP(A5,'T10'!$E$4:$F$29,2,0),VLOOKUP(A5,'T10'!$C$4:$D$29,2,0)),VLOOKUP(A5,'T10'!$A$4:$B$29,2,0)) -> 2.570844 | C5: Dunhill | D5: =IF(ISNA(VLOOKUP(C5,'T10'!$A$4:$B$29,2,0)),IF(ISNA(VLOOKUP(C5,'T10'!$C$4:$D$29,2,0)),VLOOKUP(C5,'T10'!$E$4:$F$29,2,0),VLOOKUP(C5,'T10'!$C$4:$D$29,2,0)),VLOOKUP(C5,'T10'!$A$4:$B$29,2,0)) -> 1.412272 | E5: Lochay | F5: =IF(ISNA(VLOOKUP(E5,'T10'!$A$4:$B$29,2,0)),IF(ISNA(VLOOKUP(E5,'T10'!$C$4:$D$29,2,0)),VLOOKUP(E5,'T10'!$E$4:$F$29,2,0),VLOOKUP(E5,'T10'!$C$4:$D$29,2,0)),VLOOKUP(E5,'T10'!$A$4:$B$29,2,0)) -> 0.36082
A6: Aigas | B6: =IF(ISNA(VLOOKUP(A6,'T10'!$A$4:$B$29,2,0)),IF(ISNA(VLOOKUP(A6,'T10'!$C$4:$D$29,2,0)),VLOOKUP(A6,'T10'!$E$4:$F$29,2,0),VLOOKUP(A6,'T10'!$C$4:$D$29,2,0)),VLOOKUP(A6,'T10'!$A$4:$B$29,2,0)) -> 0.644872 | C6: Dunlaw Extension | D6: =IF(ISNA(VLOOKUP(C6,'T10'!$A$4:$B$29,2,0)),IF(ISNA(VLOOKUP(C6,'T10'!$C$4:$D$29,2,0)),VLOOKUP(C6,'T10'!$E$4:$F$29,2,0),VLOOKUP(C6,'T10'!$C$4:$D$29,2,0)),VLOOKUP(C6,'T10'!$A$4:$B$29,2,0)) -> 1.47975 | E6: Luichart | F6: =IF(ISNA(VLOOKUP(E6,'T10'!$A$4:$B$29,2,0)),IF(ISNA(VLOOKUP(E6,'T10'!$C$4:$D$29,2,0)),VLOOKUP(E6,'T10'!$E$4:$F$29,2,0),VLOOKUP(E6,'T10'!$C$4:$D$29,2,0)),VLOOKUP(E6,'T10'!$A$4:$B$29,2,0)) -> 0.565474
A7: An Suidhe | B7: =IF(ISNA(VLOOKUP(A7,'T10'!$A$4:$B$29,2,0)),IF(ISNA(VLOOKUP(A7,'T10'!$C$4:$D$29,2,0)),VLOOKUP(A7,'T10'!$E$4:$F$29,2,0),VLOOKUP(A7,'T10'!$C$4:$D$29,2,0)),VLOOKUP(A7,'T10'!$A$4:$B$29,2,0)) -> -0.94107 | C7: Edinbane | D7: =IF(ISNA(VLOOKUP(C7,'T10'!$A$4:$B$29,2,0)),IF(ISNA(VLOOKUP(C7,'T10'!$C$4:$D$29,2,0)),VLOOKUP(C7,'T10'!$E$4:$F$29,2,0),VLOOKUP(C7,'T10'!$C$4:$D$29,2,0)),VLOOKUP(C7,'T10'!$A$4:$B$29,2,0)) -> 6.748067 | E7: Marchwood | F7: =IF(ISNA(VLOOKUP(E7,'T10'!$A$4:$B$29,2,0)),IF(ISNA(VLOOKUP(E7,'T10'!$C$4:$D$29,2,0)),VLOOKUP(E7,'T10'!$E$4:$F$29,2,0),VLOOKUP(E7,'T10'!$C$4:$D$29,2,0)),VLOOKUP(E7,'T10'!$A$4:$B$29,2,0)) -> 0.376314
A8: Arecleoch | B8: =IF(ISNA(VLOOKUP(A8,'T10'!$A$4:$B$29,2,0)),IF(ISNA(VLOOKUP(A8,'T10'!$C$4:$D$29,2,0)),VLOOKUP(A8,'T10'!$E$4:$F$29,2,0),VLOOKUP(A8,'T10'!$C$4:$D$29,2,0)),VLOOKUP(A8,'T10'!$A$4:$B$29,2,0)) -> 2.047871 | C8: Ewe Hill | D8: =IF(ISNA(VLOOKUP(C8,'T10'!$A$4:$B$29,2,0)),IF(ISNA(VLOOKUP(C8,'T10'!$C$4:$D$29,2,0)),VLOOKUP(C8,'T10'!$E$4:$F$29,2,0),VLOOKUP(C8,'T10'!$C$4:$D$29,2,0)),VLOOKUP(C8,'T10'!$A$4:$B$29,2,0)) -> 1.354956 | E8: Mark Hill | F8: =IF(ISNA(VLOOKUP(E8,'T10'!$A$4:$B$29,2,0)),IF(ISNA(VLOOKUP(E8,'T10'!$C$4:$D$29,2,0)),VLOOKUP(E8,'T10'!$E$4:$F$29,2,0),VLOOKUP(E8,'T10'!$C$4:$D$29,2,0)),VLOOKUP(E8,'T10'!$A$4:$B$29,2,0)) -> 0.863311
A9: Baglan Bay | B9: =IF(ISNA(VLOOKUP(A9,'T10'!$A$4:$B$29,2,0)),IF(ISNA(VLOOKUP(A9,'T10'!$C$4:$D$29,2,0)),VLOOKUP(A9,'T10'!$E$4:$F$29,2,0),VLOOKUP(A9,'T10'!$C$4:$D$29,2,0)),VLOOKUP(A9,'T10'!$A$4:$B$29,2,0)) -> 0.750115 | C9: Fallago | D9: =IF(ISNA(VLOOKUP(C9,'T10'!$A$4:$B$29,2,0)),IF(ISNA(VLOOKUP(C9,'T10'!$C$4:$D$29,2,0)),VLOOKUP(C9,'T10'!$E$4:$F$29,2,0),VLOOKUP(C9,'T10'!$C$4:$D$29,2,0)),VLOOKUP(C9,'T10'!$A$4:$B$29,2,0)) -> 0.199323 | E9: Middle Muir | F9: =IF(ISNA(VLOOKUP(E9,'T10'!$A$4:$B$29,2,0)),IF(ISNA(VLOOKUP(E9,'T10'!$C$4:$D$29,2,0)),VLOOKUP(E9,'T10'!$E$4:$F$29,2,0),VLOOKUP(E9,'T10'!$C$4:$D$29,2,0)),VLOOKUP(E9,'T10'!$A$4:$B$29,2,0)) -> 1.954443
A10: Beinneun Wind Farm | B10: =IF(ISNA(VLOOKUP(A10,'T10'!$A$4:$B$29,2,0)),IF(ISNA(VLOOKUP(A10,'T10'!$C$4:$D$29,2,0)),VLOOKUP(A10,'T10'!$E$4:$F$29,2,0),VLOOKUP(A10,'T10'!$C$4:$D$29,2,0)),VLOOKUP(A10,'T10'!$A$4:$B$29,2,0)) -> 1.480947 | C10: Farr | D10: =IF(ISNA(VLOOKUP(C10,'T10'!$A$4:$B$29,2,0)),IF(ISNA(VLOOKUP(C10,'T10'!$C$4:$D$29,2,0)),VLOOKUP(C10,'T10'!$E$4:$F$29,2,0),VLOOKUP(C10,'T10'!$C$4:$D$29,2,0)),VLOOKUP(C10,'T10'!$A$4:$B$29,2,0)) -> 3.515507 | E10: Middleton | F10: =IF(ISNA(VLOOKUP(E10,'T10'!$A$4:$B$29,2,0)),IF(ISNA(VLOOKUP(E10,'T10'!$C$4:$D$29,2,0)),VLOOKUP(E10,'T10'!$E$4:$F$29,2,0),VLOOKUP(E10,'T10'!$C$4:$D$29,2,0)),VLOOKUP(E10,'T10'!$A$4:$B$29,2,0)) -> 0.109785
A11: Bhlaraidh Wind Farm | B11: =IF(ISNA(VLOOKUP(A11,'T10'!$A$4:$B$29,2,0)),IF(ISNA(VLOOKUP(A11,'T10'!$C$4:$D$29,2,0)),VLOOKUP(A11,'T10'!$E$4:$F$29,2,0),VLOOKUP(A11,'T10'!$C$4:$D$29,2,0)),VLOOKUP(A11,'T10'!$A$4:$B$29,2,0)) -> 0.648822 | C11: Fernoch | D11: =IF(ISNA(VLOOKUP(C11,'T10'!$A$4:$B$29,2,0)),IF(ISNA(VLOOKUP(C11,'T10'!$C$4:$D$29,2,0)),VLOOKUP(C11,'T10'!$E$4:$F$29,2,0),VLOOKUP(C11,'T10'!$C$4:$D$29,2,0)),VLOOKUP(C11,'T10'!$A$4:$B$29,2,0)) -> 4.337104 | E11: Millennium South | F11: =IF(ISNA(VLOOKUP(E11,'T10'!$A$4:$B$29,2,0)),IF(ISNA(VLOOKUP(E11,'T10'!$C$4:$D$29,2,0)),VLOOKUP(E11,'T10'!$E$4:$F$29,2,0),VLOOKUP(E11,'T10'!$C$4:$D$29,2,0)),VLOOKUP(E11,'T10'!$A$4:$B$29,2,0)) -> 0.928492
A12: Black Hill | B12: =IF(ISNA(VLOOKUP(A12,'T10'!$A$4:$B$29,2,0)),IF(ISNA(VLOOKUP(A12,'T10'!$C$4:$D$29,2,0)),VLOOKUP(A12,'T10'!$E$4:$F$29,2,0),VLOOKUP(A12,'T10'!$C$4:$D$29,2,0)),VLOOKUP(A12,'T10'!$A$4:$B$29,2,0)) -> 1.531255 | C12: Ffestiniogg | D12: =IF(ISNA(VLOOKUP(C12,'T10'!$A$4:$B$29,2,0)),IF(ISNA(VLOOKUP(C12,'T10'!$C$4:$D$29,2,0)),VLOOKUP(C12,'T10'!$E$4:$F$29,2,0),VLOOKUP(C12,'T10'!$C$4:$D$29,2,0)),VLOOKUP(C12,'T10'!$A$4:$B$29,2,0)) -> 0.249457 | E12: Millennium Wind | F12: =IF(ISNA(VLOOKUP(E12,'T10'!$A$4:$B$29,2,0)),IF(ISNA(VLOOKUP(E12,'T10'!$C$4:$D$29,2,0)),VLOOKUP(E12,'T10'!$E$4:$F$29,2,0),VLOOKUP(E12,'T10'!$C$4:$D$29,2,0)),VLOOKUP(E12,'T10'!$A$4:$B$29,2,0)) -> 1.800785
A13: Black Law | B13: =IF(ISNA(VLOOKUP(A13,'T10'!$A$4:$B$29,2,0)),IF(ISNA(VLOOKUP(A13,'T10'!$C$4:$D$29,2,0)),VLOOKUP(A13,'T10'!$E$4:$F$29,2,0),VLOOKUP(A13,'T10'!$C$4:$D$29,2,0)),VLOOKUP(A13,'T10'!$A$4:$B$29,2,0)) -> 1.722917 | C13: Finlarig | D13: =IF(ISNA(VLOOKUP(C13,'T10'!$A$4:$B$29,2,0)),IF(ISNA(VLOOKUP(C13,'T10'!$C$4:$D$29,2,0)),VLOOKUP(C13,'T10'!$E$4:$F$29,2,0),VLOOKUP(C13,'T10'!$C$4:$D$29,2,0)),VLOOKUP(C13,'T10'!$A$4:$B$29,2,0)) -> 0.315718 | E13: Moffat | F13: =IF(ISNA(VLOOKUP(E13,'T10'!$A$4:$B$29,2,0)),IF(ISNA(VLOOKUP(E13,'T10'!$C$4:$D$29,2,0)),VLOOKUP(E13,'T10'!$E$4:$F$29,2,0),VLOOKUP(E13,'T10'!$C$4:$D$29,2,0)),VLOOKUP(E13,'T10'!$A$4:$B$29,2,0)) -> 0.169407
A14: BlackCraig Wind Farm | B14: =IF(ISNA(VLOOKUP(A14,'T10'!$A$4:$B$29,2,0)),IF(ISNA(VLOOKUP(A14,'T10'!$C$4:$D$29,2,0)),VLOOKUP(A14,'T10'!$E$4:$F$29,2,0),VLOOKUP(A14,'T10'!$C$4:$D$29,2,0)),VLOOKUP(A14,'T10'!$A$4:$B$29,2,0)) -> 6.206946 | C14: Foyers | D14: =IF(ISNA(VLOOKUP(C14,'T10'!$A$4:$B$29,2,0)),IF(ISNA(VLOOKUP(C14,'T10'!$C$4:$D$29,2,0)),VLOOKUP(C14,'T10'!$E$4:$F$29,2,0),VLOOKUP(C14,'T10'!$C$4:$D$29,2,0)),VLOOKUP(C14,'T10'!$A$4:$B$29,2,0)) -> 0.742448 | E14: Mossford | F14: =IF(ISNA(VLOOKUP(E14,'T10'!$A$4:$B$29,2,0)),IF(ISNA(VLOOKUP(E14,'T10'!$C$4:$D$29,2,0)),VLOOKUP(E14,'T10'!$E$4:$F$29,2,0),VLOOKUP(E14,'T10'!$C$4:$D$29,2,0)),VLOOKUP(E14,'T10'!$A$4:$B$29,2,0)) -> 0.441921
A15: BlackLaw Extension | B15: =IF(ISNA(VLOOKUP(A15,'T10'!$A$4:$B$29,2,0)),IF(ISNA(VLOOKUP(A15,'T10'!$C$4:$D$29,2,0)),VLOOKUP(A15,'T10'!$E$4:$F$29,2,0),VLOOKUP(A15,'T10'!$C$4:$D$29,2,0)),VLOOKUP(A15,'T10'!$A$4:$B$29,2,0)) -> 3.653668 | C15: Galawhistle | D15: =IF(ISNA(VLOOKUP(C15,'T10'!$A$4:$B$29,2,0)),IF(ISNA(VLOOKUP(C15,'T10'!$C$4:$D$29,2,0)),VLOOKUP(C15,'T10'!$E$4:$F$29,2,0),VLOOKUP(C15,'T10'!$C$4:$D$29,2,0)),VLOOKUP(C15,'T10'!$A$4:$B$29,2,0)) -> 1.458315 | E15: Nant | F15: =IF(ISNA(VLOOKUP(E15,'T10'!$A$4:$B$29,2,0)),IF(ISNA(VLOOKUP(E15,'T10'!$C$4:$D$29,2,0)),VLOOKUP(E15,'T10'!$E$4:$F$29,2,0),VLOOKUP(E15,'T10'!$C$4:$D$29,2,0)),VLOOKUP(E15,'T10'!$A$4:$B$29,2,0)) -> -1.211288
A16: Carrington | B16: =IF(ISNA(VLOOKUP(A16,'T10'!$A$4:$B$29,2,0)),IF(ISNA(VLOOKUP(A16,'T10'!$C$4:$D$29,2,0)),VLOOKUP(A16,'T10'!$E$4:$F$29,2,0),VLOOKUP(A16,'T10'!$C$4:$D$29,2,0)),VLOOKUP(A16,'T10'!$A$4:$B$29,2,0)) -> -0.032834 | C16: Gills Bay | D16: =IF(ISNA(VLOOKUP(C16,'T10'!$A$4:$B$29,2,0)),IF(ISNA(VLOOKUP(C16,'T10'!$C$4:$D$29,2,0)),VLOOKUP(C16,'T10'!$E$4:$F$29,2,0),VLOOKUP(C16,'T10'!$C$4:$D$29,2,0)),VLOOKUP(C16,'T10'!$A$4:$B$29,2,0)) -> 2.483116 | E16: Necton | F16: =IF(ISNA(VLOOKUP(E16,'T10'!$A$4:$B$29,2,0)),IF(ISNA(VLOOKUP(E16,'T10'!$C$4:$D$29,2,0)),VLOOKUP(E16,'T10'!$E$4:$F$29,2,0),VLOOKUP(E16,'T10'!$C$4:$D$29,2,0)),VLOOKUP(E16,'T10'!$A$4:$B$29,2,0)) -> -0.362164
A17: Clyde (North) | B17: =IF(ISNA(VLOOKUP(A17,'T10'!$A$4:$B$29,2,0)),IF(ISNA(VLOOKUP(A17,'T10'!$C$4:$D$29,2,0)),VLOOKUP(A17,'T10'!$E$4:$F$29,2,0),VLOOKUP(A17,'T10'!$C$4:$D$29,2,0)),VLOOKUP(A17,'T10'!$A$4:$B$29,2,0)) -> 0.108132 | C17: Glendoe | D17: =IF(ISNA(VLOOKUP(C17,'T10'!$A$4:$B$29,2,0)),IF(ISNA(VLOOKUP(C17,'T10'!$C$4:$D$29,2,0)),VLOOKUP(C17,'T10'!$E$4:$F$29,2,0),VLOOKUP(C17,'T10'!$C$4:$D$29,2,0)),VLOOKUP(C17,'T10'!$A$4:$B$29,2,0)) -> 1.813672 | E17: Rhigos | F17: =IF(ISNA(VLOOKUP(E17,'T10'!$A$4:$B$29,2,0)),IF(ISNA(VLOOKUP(E17,'T10'!$C$4:$D$29,2,0)),VLOOKUP(E17,'T10'!$E$4:$F$29,2,0),VLOOKUP(E17,'T10'!$C$4:$D$29,2,0)),VLOOKUP(E17,'T10'!$A$4:$B$29,2,0)) -> 0.10037
A18: Clyde (South) | B18: =IF(ISNA(VLOOKUP(A18,'T10'!$A$4:$B$29,2,0)),IF(ISNA(VLOOKUP(A18,'T10'!$C$4:$D$29,2,0)),VLOOKUP(A18,'T10'!$E$4:$F$29,2,0),VLOOKUP(A18,'T10'!$C$4:$D$29,2,0)),VLOOKUP(A18,'T10'!$A$4:$B$29,2,0)) -> 0.125049 | C18: Glenglass | D18: =IF(ISNA(VLOOKUP(C18,'T10'!$A$4:$B$29,2,0)),IF(ISNA(VLOOKUP(C18,'T10'!$C$4:$D$29,2,0)),VLOOKUP(C18,'T10'!$E$4:$F$29,2,0),VLOOKUP(C18,'T10'!$C$4:$D$29,2,0)),VLOOKUP(C18,'T10'!$A$4:$B$29,2,0)) -> 2.938353 | E18: Rocksavage | F18: =IF(ISNA(VLOOKUP(E18,'T10'!$A$4:$B$29,2,0)),IF(ISNA(VLOOKUP(E18,'T10'!$C$4:$D$29,2,0)),VLOOKUP(E18,'T10'!$E$4:$F$29,2,0),VLOOKUP(E18,'T10'!$C$4:$D$29,2,0)),VLOOKUP(E18,'T10'!$A$4:$B$29,2,0)) -> 0.017456
A19: Corriegarth | B19: =IF(ISNA(VLOOKUP(A19,'T10'!$A$4:$B$29,2,0)),IF(ISNA(VLOOKUP(A19,'T10'!$C$4:$D$29,2,0)),VLOOKUP(A19,'T10'!$E$4:$F$29,2,0),VLOOKUP(A19,'T10'!$C$4:$D$29,2,0)),VLOOKUP(A19,'T10'!$A$4:$B$29,2,0)) -> 3.108511 | C19: Gordonbush | D19: =IF(ISNA(VLOOKUP(C19,'T10'!$A$4:$B$29,2,0)),IF(ISNA(VLOOKUP(C19,'T10'!$C$4:$D$29,2,0)),VLOOKUP(C19,'T10'!$E$4:$F$29,2,0),VLOOKUP(C19,'T10'!$C$4:$D$29,2,0)),VLOOKUP(C19,'T10'!$A$4:$B$29,2,0)) -> 0.196905 | E19: Saltend | F19: =IF(ISNA(VLOOKUP(E19,'T10'!$A$4:$B$29,2,0)),IF(ISNA(VLOOKUP(E19,'T10'!$C$4:$D$29,2,0)),VLOOKUP(E19,'T10'!$E$4:$F$29,2,0),VLOOKUP(E19,'T10'!$C$4:$D$29,2,0)),VLOOKUP(E19,'T10'!$A$4:$B$29,2,0)) -> 0.33621
A20: Corriemoillie | B20: =IF(ISNA(VLOOKUP(A20,'T10'!$A$4:$B$29,2,0)),IF(ISNA(VLOOKUP(A20,'T10'!$C$4:$D$29,2,0)),VLOOKUP(A20,'T10'!$E$4:$F$29,2,0),VLOOKUP(A20,'T10'!$C$4:$D$29,2,0)),VLOOKUP(A20,'T10'!$A$4:$B$29,2,0)) -> 1.64046 | C20: Griffin Wind | D20: =IF(ISNA(VLOOKUP(C20,'T10'!$A$4:$B$29,2,0)),IF(ISNA(VLOOKUP(C20,'T10'!$C$4:$D$29,2,0)),VLOOKUP(C20,'T10'!$E$4:$F$29,2,0),VLOOKUP(C20,'T10'!$C$4:$D$29,2,0)),VLOOKUP(C20,'T10'!$A$4:$B$29,2,0)) -> 9.566769 | E20: South Humber Bank | F20: =IF(ISNA(VLOOKUP(E20,'T10'!$A$4:$B$29,2,0)),IF(ISNA(VLOOKUP(E20,'T10'!$C$4:$D$29,2,0)),VLOOKUP(E20,'T10'!$E$4:$F$29,2,0),VLOOKUP(E20,'T10'!$C$4:$D$29,2,0)),VLOOKUP(E20,'T10'!$A$4:$B$29,2,0)) -> 0.93423
A21: Coryton | B21: =IF(ISNA(VLOOKUP(A21,'T10'!$A$4:$B$29,2,0)),IF(ISNA(VLOOKUP(A21,'T10'!$C$4:$D$29,2,0)),VLOOKUP(A21,'T10'!$E$4:$F$29,2,0),VLOOKUP(A21,'T10'!$C$4:$D$29,2,0)),VLOOKUP(A21,'T10'!$A$4:$B$29,2,0)) -> 0.051513 | C21: Hadyard Hill | D21: =IF(ISNA(VLOOKUP(C21,'T10'!$A$4:$B$29,2,0)),IF(ISNA(VLOOKUP(C21,'T10'!$C$4:$D$29,2,0)),VLOOKUP(C21,'T10'!$E$4:$F$29,2,0),VLOOKUP(C21,'T10'!$C$4:$D$29,2,0)),VLOOKUP(C21,'T10'!$A$4:$B$29,2,0)) -> 2.729153 | E21: Spalding | F21: =IF(ISNA(VLOOKUP(E21,'T10'!$A$4:$B$29,2,0)),IF(ISNA(VLOOKUP(E21,'T10'!$C$4:$D$29,2,0)),VLOOKUP(E21,'T10'!$E$4:$F$29,2,0),VLOOKUP(E21,'T10'!$C$4:$D$29,2,0)),VLOOKUP(E21,'T10'!$A$4:$B$29,2,0)) -> 0.277642
A22: Cruachan | B22: =IF(ISNA(VLOOKUP(A22,'T10'!$A$4:$B$29,2,0)),IF(ISNA(VLOOKUP(A22,'T10'!$C$4:$D$29,2,0)),VLOOKUP(A22,'T10'!$E$4:$F$29,2,0),VLOOKUP(A22,'T10'!$C$4:$D$29,2,0)),VLOOKUP(A22,'T10'!$A$4:$B$29,2,0)) -> 1.865376 | C22: Harestanes | D22: =IF(ISNA(VLOOKUP(C22,'T10'!$A$4:$B$29,2,0)),IF(ISNA(VLOOKUP(C22,'T10'!$C$4:$D$29,2,0)),VLOOKUP(C22,'T10'!$E$4:$F$29,2,0),VLOOKUP(C22,'T10'!$C$4:$D$29,2,0)),VLOOKUP(C22,'T10'!$A$4:$B$29,2,0)) -> 2.474147 | E22: Strathbrora | F22: =IF(ISNA(VLOOKUP(E22,'T10'!$A$4:$B$29,2,0)),IF(ISNA(VLOOKUP(E22,'T10'!$C$4:$D$29,2,0)),VLOOKUP(E22,'T10'!$E$4:$F$29,2,0),VLOOKUP(E22,'T10'!$C$4:$D$29,2,0)),VLOOKUP(E22,'T10'!$A$4:$B$29,2,0)) -> 0.069949
A23: Crystal Rig | B23: =IF(ISNA(VLOOKUP(A23,'T10'!$A$4:$B$29,2,0)),IF(ISNA(VLOOKUP(A23,'T10'!$C$4:$D$29,2,0)),VLOOKUP(A23,'T10'!$E$4:$F$29,2,0),VLOOKUP(A23,'T10'!$C$4:$D$29,2,0)),VLOOKUP(A23,'T10'!$A$4:$B$29,2,0)) -> 0.033342 | C23: Hartlepool | D23: =IF(ISNA(VLOOKUP(C23,'T10'!$A$4:$B$29,2,0)),IF(ISNA(VLOOKUP(C23,'T10'!$C$4:$D$29,2,0)),VLOOKUP(C23,'T10'!$E$4:$F$29,2,0),VLOOKUP(C23,'T10'!$C$4:$D$29,2,0)),VLOOKUP(C23,'T10'!$A$4:$B$29,2,0)) -> 0.592021 | E23: Strathy Wind | F23: =IF(ISNA(VLOOKUP(E23,'T10'!$A$4:$B$29,2,0)),IF(ISNA(VLOOKUP(E23,'T10'!$C$4:$D$29,2,0)),VLOOKUP(E23,'T10'!$E$4:$F$29,2,0),VLOOKUP(E23,'T10'!$C$4:$D$29,2,0)),VLOOKUP(E23,'T10'!$A$4:$B$29,2,0)) -> 2.028917
A24: Culligran | B24: =IF(ISNA(VLOOKUP(A24,'T10'!$A$4:$B$29,2,0)),IF(ISNA(VLOOKUP(A24,'T10'!$C$4:$D$29,2,0)),VLOOKUP(A24,'T10'!$E$4:$F$29,2,0),VLOOKUP(A24,'T10'!$C$4:$D$29,2,0)),VLOOKUP(A24,'T10'!$A$4:$B$29,2,0)) -> 1.708927 | C24: Hedon | D24: =IF(ISNA(VLOOKUP(C24,'T10'!$A$4:$B$29,2,0)),IF(ISNA(VLOOKUP(C24,'T10'!$C$4:$D$29,2,0)),VLOOKUP(C24,'T10'!$E$4:$F$29,2,0),VLOOKUP(C24,'T10'!$C$4:$D$29,2,0)),VLOOKUP(C24,'T10'!$A$4:$B$29,2,0)) -> 0.178419 | E24: Stronelairg | F24: =IF(ISNA(VLOOKUP(E24,'T10'!$A$4:$B$29,2,0)),IF(ISNA(VLOOKUP(E24,'T10'!$C$4:$D$29,2,0)),VLOOKUP(E24,'T10'!$E$4:$F$29,2,0),VLOOKUP(E24,'T10'!$C$4:$D$29,2,0)),VLOOKUP(E24,'T10'!$A$4:$B$29,2,0)) -> 1.417537
A25: Deanie | B25: =IF(ISNA(VLOOKUP(A25,'T10'!$A$4:$B$29,2,0)),IF(ISNA(VLOOKUP(A25,'T10'!$C$4:$D$29,2,0)),VLOOKUP(A25,'T10'!$E$4:$F$29,2,0),VLOOKUP(A25,'T10'!$C$4:$D$29,2,0)),VLOOKUP(A25,'T10'!$A$4:$B$29,2,0)) -> 2.807523 | C25: Invergarry | D25: =IF(ISNA(VLOOKUP(C25,'T10'!$A$4:$B$29,2,0)),IF(ISNA(VLOOKUP(C25,'T10'!$C$4:$D$29,2,0)),VLOOKUP(C25,'T10'!$E$4:$F$29,2,0),VLOOKUP(C25,'T10'!$C$4:$D$29,2,0)),VLOOKUP(C25,'T10'!$A$4:$B$29,2,0)) -> 1.399007 | E25: Wester Dod | F25: =IF(ISNA(VLOOKUP(E25,'T10'!$A$4:$B$29,2,0)),IF(ISNA(VLOOKUP(E25,'T10'!$C$4:$D$29,2,0)),VLOOKUP(E25,'T10'!$E$4:$F$29,2,0),VLOOKUP(E25,'T10'!$C$4:$D$29,2,0)),VLOOKUP(E25,'T10'!$A$4:$B$29,2,0)) -> 0.368855
A26: Dersalloch | B26: =IF(ISNA(VLOOKUP(A26,'T10'!$A$4:$B$29,2,0)),IF(ISNA(VLOOKUP(A26,'T10'!$C$4:$D$29,2,0)),VLOOKUP(A26,'T10'!$E$4:$F$29,2,0),VLOOKUP(A26,'T10'!$C$4:$D$29,2,0)),VLOOKUP(A26,'T10'!$A$4:$B$29,2,0)) -> 2.375095 | C26: Kilgallioch | D26: =IF(ISNA(VLOOKUP(C26,'T10'!$A$4:$B$29,2,0)),IF(ISNA(VLOOKUP(C26,'T10'!$C$4:$D$29,2,0)),VLOOKUP(C26,'T10'!$E$4:$F$29,2,0),VLOOKUP(C26,'T10'!$C$4:$D$29,2,0)),VLOOKUP(C26,'T10'!$A$4:$B$29,2,0)) -> 1.037718 | E26: Whitelee | F26: =IF(ISNA(VLOOKUP(E26,'T10'!$A$4:$B$29,2,0)),IF(ISNA(VLOOKUP(E26,'T10'!$C$4:$D$29,2,0)),VLOOKUP(E26,'T10'!$E$4:$F$29,2,0),VLOOKUP(E26,'T10'!$C$4:$D$29,2,0)),VLOOKUP(E26,'T10'!$A$4:$B$29,2,0)) -> 0.104644
A27: Didcot | B27: =IF(ISNA(VLOOKUP(A27,'T10'!$A$4:$B$29,2,0)),IF(ISNA(VLOOKUP(A27,'T10'!$C$4:$D$29,2,0)),VLOOKUP(A27,'T10'!$E$4:$F$29,2,0),VLOOKUP(A27,'T10'!$C$4:$D$29,2,0)),VLOOKUP(A27,'T10'!$A$4:$B$29,2,0)) -> 0.515265 | C27: Killingholme | D27: =IF(ISNA(VLOOKUP(C27,'T10'!$A$4:$B$29,2,0)),IF(ISNA(VLOOKUP(C27,'T10'!$C$4:$D$29,2,0)),VLOOKUP(C27,'T10'!$E$4:$F$29,2,0),VLOOKUP(C27,'T10'!$C$4:$D$29,2,0)),VLOOKUP(C27,'T10'!$A$4:$B$29,2,0)) -> 0.700742 | E27: Whitelee Extension | F27: =IF(ISNA(VLOOKUP(E27,'T10'!$A$4:$B$29,2,0)),IF(ISNA(VLOOKUP(E27,'T10'!$C$4:$D$29,2,0)),VLOOKUP(E27,'T10'!$E$4:$F$29,2,0),VLOOKUP(E27,'T10'!$C$4:$D$29,2,0)),VLOOKUP(E27,'T10'!$A$4:$B$29,2,0)) -> 0.29091
A28: Dinorwig | B28: =IF(ISNA(VLOOKUP(A28,'T10'!$A$4:$B$29,2,0)),IF(ISNA(VLOOKUP(A28,'T10'!$C$4:$D$29,2,0)),VLOOKUP(A28,'T10'!$E$4:$F$29,2,0),VLOOKUP(A28,'T10'!$C$4:$D$29,2,0)),VLOOKUP(A28,'T10'!$A$4:$B$29,2,0)) -> 2.3657 | C28: Kilmorack | D28: =IF(ISNA(VLOOKUP(C28,'T10'!$A$4:$B$29,2,0)),IF(ISNA(VLOOKUP(C28,'T10'!$C$4:$D$29,2,0)),VLOOKUP(C28,'T10'!$E$4:$F$29,2,0),VLOOKUP(C28,'T10'!$C$4:$D$29,2,0)),VLOOKUP(C28,'T10'!$A$4:$B$29,2,0)) -> 0.194729
A29: Dorenell | B29: =IF(ISNA(VLOOKUP(A29,'T10'!$A$4:$B$29,2,0)),IF(ISNA(VLOOKUP(A29,'T10'!$C$4:$D$29,2,0)),VLOOKUP(A29,'T10'!$E$4:$F$29,2,0),VLOOKUP(A29,'T10'!$C$4:$D$29,2,0)),VLOOKUP(A29,'T10'!$A$4:$B$29,2,0)) -> 2.069263 | C29: Kype Muir | D29: =IF(ISNA(VLOOKUP(C29,'T10'!$A$4:$B$29,2,0)),IF(ISNA(VLOOKUP(C29,'T10'!$C$4:$D$29,2,0)),VLOOKUP(C29,'T10'!$E$4:$F$29,2,0),VLOOKUP(C29,'T10'!$C$4:$D$29,2,0)),VLOOKUP(C29,'T10'!$A$4:$B$29,2,0)) -> 1.462492

Sheet T11
A1: Table 11 - CMP203: Circuits subject to one-off charges | E1: Return to Index
A3: Node 1 | B3: Node 2 | C3: Actual Parameters | D3: Amendment in Transport Model | E3: Generator
A4: Dyce 132kV | B4: Aberdeen Bay 132kV | C4: 9.5km of Cable | D4: 9.5km of OHL | E4: Aberdeen Bay
A5: Crystal Rig 132kV | B5: Wester Dod 132kV | C5: 3.9km of Cable | D5: 3.9km of OHL | E5: Aikengall II
A6: Wishaw 132kV | B6: Blacklaw 132kV | C6: 11.46km of Cable | D6: 11.46km of OHL | E6: Blacklaw
A7: Farigaig 132kV | B7: Corriegarth 132kV | C7: 4km Cable | D7: 4km OHL | E7: Corriegarth
A8: Elvanfoot 275kV | B8: Clyde North 275kV | C8: 6.2km of Cable | D8: 6.2km of OHL | E8: Clyde North
A9: Elvanfoot 275kV | B9: Clyde South 275kV | C9: 7.17km of Cable | D9: 7.17km of OHL | E9: Clyde South
A10: Farigaig 132kV | B10: Dunmaglass 132kV | C10: 4km Cable | D10: 4km OHL | E10: Dunmaglass
A11: Coalburn 132kV | B11: Galawhistle 132kV | C11: 9.7km cable | D11: 9.7km OHL | E11: Galawhistle II
A12: Moffat 132kV | B12: Harestanes 132kV | C12: 15.33km cable | D12: 15.33km OHL | E12: Harestanes
A13: Coalburn 132kV | B13: Kype Muir 132kV | C13: 17km cable | D13: 17km OHL | E13: Kype Muir
A14: Coalburn 132kV | B14: Middle Muir 132kV | C14: 13km cable | D14: 13km OHL | E14: Middle Muir
A15: Melgarve 132kV | B15: Stronelairg 132kV | C15: 10km cable | D15: 10km OHL | E15: Stronelairg
A16: East Kilbride South 275kV | B16: Whitelee 275kV | C16: 6km of Cable | D16: 6km of OHL | E16: Whitelee
A17: East Kilbride South 275kV | B17: Whitelee Extension 275kV | C17: 16.68km of Cable | D17: 16.68km of OHL | E17: Whitelee Extension

Sheet T12
A1: Table 12 - Offshore Local Tariffs | D1: Return to Index
A3: Offshore Generator | B3: Tariff Component (£/kW)
B4: Substation | C4: Circuit | D4: ETUoS
A5: Barrow | B5: 7.975072 | C5: 41.72557 | D5: 1.036103
A6: Burbo Bank | B6: Tariff will be published in November 2018
A7: Greater Gabbard | B7: 14.95232296 | C7: 34.35896585 | D7: 0
A8: Gunfleet | B8: 17.259781 | C8: 15.84583 | D8: 2.961677
A9: Gwynt Y Mor | B9: 18.20953633 | C9: 17.93864272 | D9: 0
A10: Humber Gateway | B10: 14.49062803 | C10: 32.69568637 | D10: 0
A11: Lincs | B11: 14.90408831 | C11: 58.35291214 | D11: 0
A12: London Array | B12: 10.14560405 | C12: 34.55536257 | D12: 0
A13: Ormonde | B13: 24.654641 | C13: 45.929286 | D13: 0.366018
A14: Robin Rigg East | B14: -0.456078 | C14: 30.211238 | D14: 9.363853
A15: Robin Rigg West | B15: -0.456078 | C15: 30.211238 | D15: 9.363853
A16: Sheringham Shoal | B16: 23.82065564 | C16: 27.93604904 | D16: 0.6072475969
A17: Thanet | B17: 18.14029488 | C17: 33.80185339 | D17: 0.813729979
A18: Walney 1 | B18: 21.278124 | C18: 42.375328 | D18: 0
A19: Walney 2 | B19: 21.123374 | C19: 42.748657 | D19: 0
A20: West of Duddon Sands | B20: 8.210646842 | C20: 40.51445394 | D20: 0
A21: Westermost Rough | B21: 17.28886287 | C21: 29.24535757 | D21: 0

Sheet T13
A1: Table 13 - Contracted and Modelled TEC | F1: Return to Index
A3: (GW) | B3: 2018/19 | C3: 2019/20 Initial Forecast | D3: 2019/20 April Forecast | E3: 2019/20 June Forecast | F3: 2019/20 Draft Tariffs | G3: 2019/20 Final Tariffs
A4: Contracted TEC | B4: 79.02881 | C4: 85.46461 | D4: =85938.76/1000 -> 85.93876 | E4: 83.9
A5: Modelled Best View TEC | B5: 79.02881 | C5: 77.68061 | D5: =77496.86/1000 -> 77.49686 | E5: 77.7
A6: Chargeable TEC | B6: 71.93431 | C6: 73.83361 | D6: =71711.76/1000 -> 71.71176 | E6: 71.9

Sheet T14
A1: Table 14 - Interconnectors | G1: Return to Index
A3: Interconnector | B3: Site | C3: Interconnected System | D3: Generation Zone | E3: Transport Model (Generation MW) Peak | F3: Transport Model (Generation MW) Year Round | G3: Charging Base (Generation MW)
A4: IFA Interconnector | B4: Sellindge 400kV | C4: France | D4: 24 | E4: 0 | F4: 2000 | G4: 0
A5: ElecLink | B5: Sellindge 400kV | C5: France | D5: 24 | E5: 0 | F5: 1000 | G5: 0
A6: BritNed | B6: Grain 400kV | C6: Netherlands | D6: 24 | E6: 0 | F6: 1200 | G6: 0
A7: Belgium Interconnector (Nemo) | B7: Richborough 400kV | C7: Belgium | D7: 24 | E7: 0 | F7: 1000 | G7: 0
A8: East - West | B8: Connah's Quay 400kV | C8: Republic of Ireland | D8: 16 | E8: 0 | F8: 505 | G8: 0
A9: Moyle | B9: Auchencrosh 275kV | C9: Northern Ireland | D9: 10 | E9: 0 | F9: 80 | G9: 0

Sheet T15
A1: Table 15 - Allowed Revenues | G1: Return to Index
A3: £m Nominal Value | B3: 2018/19 TNUoS Revenue | C3: 2019/20 TNUoS Revenue
B4: ='T26'!D5 -> 2018/19 (fixed forecast) | C4: ='T26'!E5 -> Initial Forecast | D4: ='T26'!F5 -> April Forecast | E4: ='T26'!G5 -> June Forecast | F4: ='T26'!H5 -> Nov Draft | G4: Jan 2019 Final
A5: National Grid
A6: Price controlled revenue | B6: 1653.91797 | C6: 1768.519729 | D6: 1728.122369 | E6: 1770.6014
A7: Less income from connections | B7: 44.002401 | C7: 41.8826124 | D7: 44.002401 | E7: 44.002401
A8: Income from TNUoS | B8: =+B6-B7 -> 1609.915569 | C8: 1726.637117 | D8: 1684.119968 | E8: 1726.598999
A10: Scottish Power Transmission
A11: Price controlled revenue | B11: 364.83 | C11: 404.5082414 | D11: 404.5082414 | E11: =D11 -> 404.5082414
A12: Less income from connections | B12: 14.86914685 | C12: 14.53212703 | D12: 14.53212703 | E12: =D12 -> 14.53212703
A13: Income from TNUoS | B13: =+B11-B12 -> 349.9608532 | C13: 389.9761144 | D13: 389.9761144 | E13: 389.9761144
A15: SHE Transmission
A16: Price controlled revenue | B16: 369.818 | C16: 352.8503347 | D16: 352.8503347 | E16: =D16 -> 352.8503347
A17: Less income from connections | B17: 3.407116 | C17: 3.463507629 | D17: 3.463507629 | E17: =D17 -> 3.463507629
A18: Income from TNUoS | B18: =+B16-B17 -> 366.410884 | C18: 349.3868271 | D18: 349.3868271 | E18: 349.3868271
A20: Offshore | B20: 318.1438119 | C20: 466.6616268 | D20: 386.4787867 | E20: ='T26'!G24 -> 387.439852
A21: Network Innovation Competition | B21: 32.66440404 | C21: 42.5 | D21: 32.66440404 | E21: ='T26'!G33 -> 32.66440404
A22: EDR
A23: Interconnectors (Cap & Floor) | B23: -6.8 | C23: -6.8 | D23: -6.8 | E23: =D23 -> -6.8
A24: Total to Collect from TNUoS | B24: =+B23+B21+B20+B18+B13+B8 -> 2670.295522 | C24: =+C23+C21+C20+C18+C13+C8 -> 2968.361685 | D24: 2835.8261 | E24: 2879.266197

Sheet T16
A1: Table 16 - Generation and Demand Revenue Proportions | G1: Return to Index
C3: 2019/20 Initial | D3: 2019/20 April | E3: 2019/20 June | F3: 2019/20 Draft | G3: 2019/20 Final
A4: CAPEC | B4: Limit on generation tariff (€/MWh) | C4: 2.5 | D4: 2.5 | E4: 2.5
A5: y | B5: Error Margin | C5: 0.21 | D5: 0.21 | E5: 0.21
A6: ER | B6: Exchange Rate (€/£) | C6: 1.09 | D6: 1.13 | E6: 1.124927
A7: MAR | B7: Total Revenue (£m) | C7: 2968.361685 | D7: 2835.81261 | E7: 2879.252194
A8: GO | B8: Generation Output (TWh) | C8: 243.1223612 | D8: 247.0348585 | E8: 229.8335714
A9: G | B9: % of revenue from generation | C9: 0.1484050535 | D9: 0.1522542299 | E9: 0.1401446484
A10: D | B10: % of revenue from demand | C10: 0.8515949465 | D10: 0.8477457701 | E10: 0.8598553516
A11: G.R | B11: Revenue recovered from generation (£m) | C11: 440.5198747 | D11: =D7*D9 -> 431.764465 | E11: 403.5117865
A12: D.R | B12: Revenue recovered from demand (£m) | C12: 2527.84181 | D12: =D7*D10 -> 2404.048145 | E12: 2475.740408

Sheet T17
A1: Table 17 - Charging Bases | E1: Return to Index
A3: Charging Bases | B3: 2019/20 April | C3: 2019/20 June | D3: 2019/20 Draft | E3: 2019/20 Final
A4: Generation (GW) | B4: 71.71176 | C4: 71.91096
A5: NHH Demand (4pm-7pm TWh) | B5: 25.51209898 | C5: 25.51209898
A6: Net Charging
A7: Total Average Net Triad (GW) | B7: 43.57282186 | C7: 43.57282186
A8: HH Demand Average Net Triad (GW) | B8: 10.25464245 | C8: 10.25464245
A9: Gross charging
A10: Total Average Gross Triad (GW) | B10: 51.32562988 | C10: 51.32562988
A11: HH Demand Average Gross Triad (GW) | B11: 18.00745048 | C11: 18.00745048
A12: Embedded Generation Export (GW) | B12: 7.752808023 | C12: 7.752808023

Sheet T18
A1: Table 18 - Residual Calculation | F1: Return to Index
B3: Component | C3: 2019/20 April | D3: 2019/20 June | E3: 2019/20 Draft | F3: 2019/20 Final
A4: G | B4: Proportion of revenue recovered from generation (%) | C4: 0.1522542299 | D4: 0.1401446484
A5: D | B5: Proportion of revenue recovered from demand (%) | C5: 0.8477457701 | D5: 0.8598553516
A6: R | B6: Total TNUoS revenue (£m) | C6: 2835.81261 | D6: 2879.252194
A7: Generation Residual
A8: RG | B8: Generator residual tariff (£/kW) | C8: -3.291240272 | D8: -3.613060365
A9: ZG | B9: Revenue recovered from the locational element of generator tariffs (£m) | C9: 330.7122022 | D9: 329.0994538
A10: O | B10: Revenue recovered from offshore local tariffs (£m) | C10: 298.7055801 | D10: 295.9536969
A11: LG | B11: Revenue recovered from onshore local substation tariffs (£m) | C11: 19.24758905 | D11: 19.24053861
A12: SG | B12: Revenue recovered from onshore local circuit tariffs (£m) | C12: 19.11972612 | D12: 19.03673655
A13: BG | B13: Generator charging base (GW) | C13: 71.71176 | D13: 71.91096
A14: Gross Demand Residual
A15: RD | B15: Demand residual tariff (£/kW) | C15: 50.29859577 | D15: 51.69706577
A16: ZD | B16: Revenue recovered from the locational element of demand tariffs (£m) | C16: -66.68557774 | D16: -66.72559336
A17: EE | B17: Amount to be paid to Embedded Export Tariffs (£m) | C17: 110.8733876 | D17: 110.9184626
A18: BD | B18: Demand Gross charging base (GW) | C18: 51.32562988 | D18: 51.32562988

Sheet T20
A1: Table 20 - Demand Locational Tariffs | G1: Return to Index
A5: Zone | B5: 2019/20 April | C5: 2019/20 April | D5: 2019/20 June | E5: 2019/20 June (£/kW) | F5: Changes
B6: Peak (£/kW) | C6: Year Round (£/kW) | D6: Peak (£/kW) | E6: Year Round (£/kW) | F6: Peak (£/kW) | G6: Year Round (£/kW)
A7: 1 | B7: -2.047906968 | C7: -28.51368293 | D7: -2.041245073 | E7: -28.53857155 | F7: 0.006661895145 | G7: -0.02488862639
A8: 2 | B8: -2.240275346 | C8: -20.63959665 | D8: -2.244735525 | E8: -20.65519853 | F8: -0.004460179108 | G8: -0.01560188157
A9: 3 | B9: -3.581823188 | C9: -6.824063892 | D9: -3.578833101 | E9: -6.826103973 | F9: 0.002990087321 | G9: -0.002040080483
A10: 4 | B10: -1.12651544 | C10: -2.449698638 | D10: -1.124121008 | E10: -2.443991968 | F10: 0.00239443149 | G10: 0.005706670153
A11: 5 | B11: -2.842327723 | C11: -0.442221639 | D11: -2.839205956 | E11: -0.4365107435 | F11: 0.003121766482 | G11: 0.005710895457
A12: 6 | B12: -2.28993518 | C12: 0.2900203111 | D12: -2.259558026 | E12: 0.2738900317 | F12: 0.03037715421 | G12: -0.01613027941
A13: 7 | B13: -2.161976496 | C13: 2.315724555 | D13: -2.158902211 | E13: 2.322930151 | F13: 0.003074285082 | G13: 0.007205596108
A14: 8 | B14: -1.437143395 | C14: 2.890913856 | D14: -1.436306543 | E14: 2.897707358 | F14: 0.0008368517475 | G14: 0.006793502633
A15: 9 | B15: 1.354743286 | C15: 0.8377461694 | D15: 1.359902705 | E15: 0.8469983321 | F15: 0.005159418538 | G15: 0.009252162669
A16: 10 | B16: -6.139131245 | C16: 4.501087362 | D16: -6.144324238 | E16: 4.499897227 | F16: -0.005192993069 | G16: -0.001190134574
A17: 11 | B17: 4.203997942 | C17: 0.7226993724 | D17: 4.213771583 | E17: 0.7372906934 | F17: 0.00977364088 | G17: 0.01459132099
A18: 12 | B18: 5.650585236 | C18: 2.398598541 | D18: 5.656189742 | E18: 2.408837864 | F18: 0.005604505843 | G18: 0.01023932263
A19: 13 | B19: 1.838025805 | C19: 4.33164304 | D19: 1.816924529 | E19: 4.314971979 | F19: -0.02110127597 | G19: -0.01667106041
A20: 14 | B20: -0.9217489024 | C20: 5.42978183 | D20: -0.9559201924 | E20: 5.399888371 | F20: -0.03417129007 | G20: -0.02989345884

Sheet T21
A1: Table 21 - Breakdown of the Embedded Export Tariff | L1: Return to Index
A3: Demand Zone | C3: 2019/20 April | F3: 2019/20 June | I3: Changes
C4: Locational (£/kW) | D4: AGIC (£/kW) | E4: Phased Residual (£/kW) | F4: Locational (£/kW) | G4: AGIC (£/kW) | H4: Phased Residual (£/kW) | I4: Locational (£/kW) | J4: AGIC (£/kW) | K4: Phased Residual (£/kW)
A5: 1 | B5: Northern Scotland | C5: -30.56158989 | D5: 3.32 | E5: 14.65 | F5: -30.57981663 | G5: 3.327268 | H5: 14.65 | I5: =F5-C5 -> -0.01822673124 | J5: =G5-D5 -> 0.007268 | K5: 0
A6: 2 | B6: Southern Scotland | C6: -22.87987199 | D6: 3.32 | E6: 14.65 | F6: -22.89993406 | G6: 3.327268 | H6: 14.65 | I6: =F6-C6 -> -0.02006206068 | J6: =G6-D6 -> 0.007268 | K6: =H6-E6 -> 0
A7: 3 | B7: Northern | C7: -10.40588708 | D7: 3.32 | E7: 14.65 | F7: -10.40493707 | G7: 3.327268 | H7: 14.65 | I7: 0.0009500068379 | J7: 0.007268 | K7: 0
A8: 4 | B8: North West | C8: -3.576214078 | D8: 3.32 | E8: 14.65 | F8: -3.568112976 | G8: 3.327268 | H8: 14.65 | I8: 0.008101101643 | J8: 0.007268 | K8: 0
A9: 5 | B9: Yorkshire | C9: -3.284549362 | D9: 3.32 | E9: 14.65 | F9: -3.2757167 | G9: 3.327268 | H9: 14.65 | I9: 0.008832661939 | J9: 0.007268 | K9: 0
A10: 6 | B10: N Wales & Mersey | C10: -1.999914869 | D10: 3.32 | E10: 14.65 | F10: -1.985667994 | G10: 3.327268 | H10: 14.65 | I10: 0.01424687481 | J10: 0.007268 | K10: 0
A11: 7 | B11: East Midlands | C11: 0.1537480589 | D11: 3.32 | E11: 14.65 | F11: 0.1640279401 | G11: 3.327268 | H11: 14.65 | I11: 0.01027988119 | J11: 0.007268 | K11: 0
A12: 8 | B12: Midlands | C12: 1.453770461 | D12: 3.32 | E12: 14.65 | F12: 1.461400815 | G12: 3.327268 | H12: 14.65 | I12: 0.007630354381 | J12: 0.007268 | K12: 0
A13: 9 | B13: Eastern | C13: 2.192489456 | D13: 3.32 | E13: 14.65 | F13: 2.206901037 | G13: 3.327268 | H13: 14.65 | I13: 0.01441158121 | J13: 0.007268 | K13: 0
A14: 10 | B14: South Wales | C14: -1.638043883 | D14: 3.32 | E14: 14.65 | F14: -1.644427011 | G14: 3.327268 | H14: 14.65 | I14: -0.006383127643 | J14: 0.007268 | K14: 0
A15: 11 | B15: South East | C15: 4.926697314 | D15: 3.32 | E15: 14.65 | F15: 4.951062276 | G15: 3.327268 | H15: 14.65 | I15: 0.02436496187 | J15: 0.007268 | K15: 0
A16: 12 | B16: London | C16: 8.049183778 | D16: 3.32 | E16: 14.65 | F16: 8.065027606 | G16: 3.327268 | H16: 14.65 | I16: 0.01584382848 | J16: 0.007268 | K16: 0
A17: 13 | B17: Southern | C17: 6.169668845 | D17: 3.32 | E17: 14.65 | F17: 6.131896508 | G17: 3.327268 | H17: 14.65 | I17: -0.03777233639 | J17: 0.007268 | K17: 0
A18: 14 | B18: South Western | C18: 4.508032928 | D18: 3.32 | E18: 14.65 | F18: 4.443968179 | G18: 3.327268 | H18: 14.65 | I18: -0.06406474891 | J18: 0.007268 | K18: 0

Sheet T22
A1: Table 22 - Demand Profiles | H1: Return to Index
A3: Zone | B3: Zone Name | C3: 2019/20 April | D3: 2019/20 April | E3: 2019/20 April | F3: 2019/20 April | G3: 2019/20 April | H3: 2019/20 June | I3: 2019/20 June | J3: 2019/20 June | K3: 2019/20 June | L3: 2019/20 June
C4: Locational Model Demand (MW) | D4: GROSS Tariff model Peak Demand (MW) | E4: GROSS Tariff Model HH Demand (MW) | F4: Tariff model NHH Demand (TWh) | G4: Tariff model Embedded Export (MW) | H4: Locational Model Demand (MW) | I4: GROSS Tariff model Peak Demand (MW) | J4: GROSS Tariff Model HH Demand (MW) | K4: Tariff model NHH Demand (TWh) | L4: Tariff model Embedded Export (MW)
A5: 1 | B5: Northern Scotland | C5: 499.4470879 | D5: 1483.158198 | E5: 427.580991 | F5: 0.7841774083 | G5: 958.033541 | H5: 499.4470879 | I5: 1483.158198 | J5: 427.580991 | K5: 0.7841774083 | L5: 958.033541
A6: 2 | B6: Southern Scotland | C6: 2695.280234 | D6: 3444.351288 | E6: 1125.619346 | F6: 1.771222969 | G6: 678.452112 | H6: 2695.280234 | I6: 3444.351288 | J6: 1125.619346 | K6: 1.771222969 | L6: 678.452112
A7: 3 | B7: Northern | C7: 2702.30189 | D7: 2575.952919 | E7: 902.0794079 | F7: 1.317697649 | G7: 438.6492024 | H7: 2702.30189 | I7: 2575.952919 | J7: 902.0794079 | K7: 1.317697649 | L7: 438.6492024
A8: 4 | B8: North West | C8: 3067.497227 | D8: 4037.404686 | E8: 1413.353913 | F8: 2.023841932 | G8: 410.1200072 | H8: 3067.497227 | I8: 4037.404686 | J8: 1413.353913 | K8: 2.023841932 | L8: 410.1200072
A9: 5 | B9: Yorkshire | C9: 4384.081029 | D9: 3818.464656 | E9: 1495.276279 | F9: 1.825308989 | G9: 807.5337375 | H9: 4384.081029 | I9: 3818.464656 | J9: 1495.276279 | K9: 1.825308989 | L9: 807.5337375
A10: 6 | B10: N Wales & Mersey | C10: 2557.744558 | D10: 2627.780829 | E10: 991.0023673 | F10: 1.29831167 | G10: 550.4392397 | H10: 2557.744558 | I10: 2627.780829 | J10: 991.0023673 | K10: 1.29831167 | L10: 550.4392397
A11: 7 | B11: East Midlands | C11: 5375.75 | D11: 4651.125409 | E11: 1717.461032 | F11: 2.239372203 | G11: 639.1933985 | H11: 5375.75 | I11: 4651.125409 | J11: 1717.461032 | K11: 2.239372203 | L11: 639.1933985
A12: 8 | B12: Midlands | C12: 4424.72 | D12: 4251.458852 | E12: 1388.571697 | F12: 2.171433796 | G12: 335.0919945 | H12: 4424.72 | I12: 4251.458852 | J12: 1388.571697 | K12: 2.171433796 | L12: 335.0919945
A13: 9 | B13: Eastern | C13: 6238.213774 | D13: 6447.1848 | E13: 1931.332244 | F13: 3.23772703 | G13: 805.6924828 | H13: 6238.213774 | I13: 6447.1848 | J13: 1931.332244 | K13: 3.23772703 | L13: 805.6924828
A14: 10 | B14: South Wales | C14: 1673.919626 | D14: 1821.866552 | E14: 778.9007288 | F14: 0.8841946776 | G14: 509.7005667 | H14: 1673.919626 | I14: 1821.866552 | J14: 778.9007288 | K14: 0.8841946776 | L14: 509.7005667
A15: 11 | B15: South East | C15: 3870.804521 | D15: 3906.270344 | E15: 1059.905582 | F15: 2.00831368 | G15: 410.9235787 | H15: 3870.804521 | I15: 3906.270344 | J15: 1059.905582 | K15: 2.00831368 | L15: 410.9235787
A16: 12 | B16: London | C16: 5599.242646 | D16: 4186.878704 | E16: 2202.526201 | F16: 1.870962159 | G16: 170.8310488 | H16: 5599.242646 | I16: 4186.878704 | J16: 2202.526201 | K16: 1.870962159 | L16: 170.8310488
A17: 13 | B17: Southern | C17: 6565.89304 | D17: 5476.488038 | E17: 1933.211328 | F17: 2.677801363 | G17: 692.6738598 | H17: 6565.89304 | I17: 5476.488038 | J17: 1933.211328 | K17: 2.677801363 | L17: 692.6738598
A18: 14 | B18: South Western | C18: 2210.07841 | D18: 2597.244605 | E18: 640.6293579 | F18: 1.401733455 | G18: 345.4732532 | H18: 2210.07841 | I18: 2597.244605 | J18: 640.6293579 | K18: 1.401733455 | L18: 345.4732532
A19: Total | C19: 51864.97404 | D19: 51325.62988 | E19: 18007.45048 | F19: 25.51209898 | G19: 7752.808023 | H19: 51864.97404 | I19: 51325.62988 | J19: 18007.45048 | K19: 25.51209898 | L19: 7752.808023

Sheet T23
A1: Table 23 - Annual Load Factors | L1: Return to Index
A5: Power Station | B5: Technology | C5: Yearly Load Factor Source | H5: Yearly Load Factor Value | M5: Specific ALF
C6: 2012 | D6: 2013 | E6: 2014 | F6: 2015 | G6: 2016 | H6: 2012 | I6: 2013 | J6: 2014 | K6: 2015 | L6: 2016
A7: ABERTHAW | B7: Coal | C7: Actual | D7: Actual | E7: Actual | F7: Actual | G7: Actual | H7: 0.740137 | I7: 0.655413 | J7: 0.590043 | K7: 0.542611 | L7: 0.508335 | M7: 0.596022
A8: ACHRUACH | B8: Onshore_Wind | C8: Generic | D8: Generic | E8: Generic | F8: Partial | G8: Actual | H8: 0 | I8: 0 | J8: 0 | K8: 0.336464 | L8: 0.36714 | M8: 0.348994
A9: AN SUIDHE WIND FARM | B9: Onshore_Wind | C9: Actual | D9: Actual | E9: Actual | F9: Actual | G9: Actual | H9: 0.31638 | I9: 0.415843 | J9: 0.369422 | K9: 0.3549 | L9: 0.340938 | M9: 0.355087
A10: ARECLEOCH | B10: Onshore_Wind | C10: Actual | D10: Actual | E10: Actual | F10: Actual | G10: Actual | H10: 0.324826 | I10: 0.338296 | J10: 0.297298 | K10: 0.368612 | L10: 0.197246 | M10: 0.32014
A11: BAGLAN BAY | B11: CCGT_CHP | C11: Actual | D11: Actual | E11: Actual | F11: Actual | G11: Actual | H11: 0.275756 | I11: 0.164106 | J11: 0.379194 | K11: 0.291228 | L11: 0.55203 | M11: 0.315393
A12: BARKING | B12: CCGT_CHP | C12: Actual | D12: Actual | E12: Partial | F12: Generic | G12: Generic | H12: 0.023383 | I12: 0.018802 | J12: 0.14193 | K12: 0 | L12: 0 | M12: 0.061371
A13: BARROW OFFSHORE WIND LTD | B13: Offshore_Wind | C13: Actual | D13: Actual | E13: Actual | F13: Actual | G13: Actual | H13: 0.42884 | I13: 0.54108 | J13: 0.470231 | K13: 0.471791 | L13: 0.442584 | M13: 0.461536
A14: BARRY | B14: CCGT_CHP | C14: Actual | D14: Actual | E14: Actual | F14: Actual | G14: Partial | H14: 0.006999 | I14: 0.012989 | J14: 0.004003 | K14: 0.021727 | L14: 0.2543 | M14: 0.013905
A15: BEAULY CASCADE | B15: Hydro | C15: Actual | D15: Actual | E15: Actual | F15: Actual | G15: Actual | H15: 0.254532 | I15: 0.356683 | J15: 0.371167 | K15: 0.350094 | L15: 0.304872 | M15: 0.337216
A16: BEINNEUN | B16: Onshore_Wind | C16: Generic | D16: Generic | E16: Generic | F16: Generic | G16: Partial | H16: 0 | I16: 0 | J16: 0 | K16: 0 | L16: 0.309622 | M16: 0.332125
A17: BHLARAIDH | B17: Onshore_Wind | C17: Generic | D17: Generic | E17: Generic | F17: Generic | G17: Partial | H17: 0 | I17: 0 | J17: 0 | K17: 0 | L17: 0.334338 | M17: 0.340364
A18: BLACK LAW | B18: Onshore_Wind | C18: Actual | D18: Actual | E18: Actual | F18: Actual | G18: Actual | H18: 0.220683 | I18: 0.319648 | J18: 0.267881 | K18: 0.269035 | L18: 0.234623 | M18: 0.25718
A19: BLACKLAW EXTENSION | B19: Onshore_Wind | C19: Generic | D19: Generic | E19: Generic | F19: Partial | G19: Actual | H19: 0 | I19: 0 | J19: 0 | K19: 0.334635 | L19: 0.131095 | M19: 0.269702
A20: BRIMSDOWN | B20: CCGT_CHP | C20: Actual | D20: Actual | E20: Actual | F20: Actual | G20: Actual | H20: 0.218759 | I20: 0.187645 | J20: 0.111229 | K20: 0.164463 | L20: 0.450615 | M20: 0.190289
A21: BURBO BANK | B21: Offshore_Wind | C21: Generic | D21: Generic | E21: Generic | F21: Actual | G21: Actual | H21: 0 | I21: 0 | J21: 0 | K21: 0.167781 | L21: 0.250233 | M21: 0.304355
A22: CARRAIG GHEAL | B22: Onshore_Wind | C22: Partial | D22: Actual | E22: Actual | F22: Actual | G22: Actual | H22: 0.298118 | I22: 0.45276 | J22: 0.489277 | K22: 0.456254 | L22: 0.404211 | M22: 0.466097
A23: CARRINGTON | B23: CCGT_CHP | C23: Generic | D23: Generic | E23: Generic | F23: Partial | G23: Actual | H23: 0 | I23: 0 | J23: 0 | K23: 0.387318 | L23: 0.580115 | M23: 0.46652
A24: CLUNIE SCHEME | B24: Hydro | C24: Actual | D24: Actual | E24: Actual | F24: Actual | G24: Actual | H24: 0.334563 | I24: 0.453256 | J24: 0.432488 | K24: 0.479711 | L24: 0.328297 | M24: 0.406769
A25: CLYDE (NORTH) | B25: Onshore_Wind | C25: Actual | D25: Actual | E25: Actual | F25: Actual | G25: Actual | H25: 0.285345 | I25: 0.426598 | J25: 0.368882 | K25: 0.41412 | L25: 0.268858 | M25: 0.356116
A26: CLYDE (SOUTH) | B26: Onshore_Wind | C26: Actual | D26: Actual | E26: Actual | F26: Actual | G26: Actual | H26: 0.316084 | I26: 0.398941 | J26: 0.294115 | K26: 0.399615 | L26: 0.348751 | M26: 0.354592
A27: CONNAHS QUAY | B27: CCGT_CHP | C27: Actual | D27: Actual | E27: Actual | F27: Actual | G27: Actual | H27: 0.185104 | I27: 0.128233 | J27: 0.183739 | K27: 0.282713 | L27: 0.374588 | M27: 0.217185
A28: CONON CASCADE | B28: Hydro | C28: Actual | D28: Actual | E28: Actual | F28: Actual | G28: Actual | H28: 0.475286 | I28: 0.54282 | J28: 0.555287 | K28: 0.58986 | L28: 0.486782 | M28: 0.528296
A29: CORRIEGARTH | B29: Onshore_Wind | C29: Generic | D29: Generic | E29: Generic | F29: Generic | G29: Partial | H29: 0 | I29: 0 | J29: 0 | K29: 0 | L29: 0.225644 | M29: 0.304133
A30: CORRIEMOILLIE | B30: Onshore_Wind | C30: Generic | D30: Generic | E30: Generic | F30: Generic | G30: Partial | H30: 0 | I30: 0 | J30: 0 | K30: 0 | L30: 0.322315 | M30: 0.336356
A31: CORYTON | B31: CCGT_CHP | C31: Actual | D31: Actual | E31: Actual | F31: Actual | G31: Actual | H31: 0.156869 | I31: 0.097852 | J31: 0.175123 | K31: 0.264 | L31: 0.630383 | M31: 0.198664
A32: COTTAM | B32: Coal | C32: Actual | D32: Actual | E32: Actual | F32: Actual | G32: Actual | H32: 0.6507 | I32: 0.673951 | J32: 0.514426 | K32: 0.344157 | L32: 0.149387 | M32: 0.503095
A33: COTTAM DEVELOPMENT CENTRE | B33: CCGT_CHP | C33: Actual | D33: Actual | E33: Actual | F33: Actual | G33: Actual | H33: 0.137361 | I33: 0.160249 | J33: 0.313132 | K33: 0.282382 | L33: 0.672482 | M33: 0.251921
A34: COUR | B34: Onshore_Wind | C34: Generic | D34: Generic | E34: Generic | F34: Generic | G34: Partial | H34: 0 | I34: 0 | J34: 0 | K34: 0 | L34: 0.383246 | M34: 0.356667
A35: COWES | B35: Gas_Oil | C35: Actual | D35: Actual | E35: Actual | F35: Actual | G35: Actual | H35: 0.001743 | I35: 0.000956 | J35: 0.003135 | K35: 0.004912 | L35: 0.005319 | M35: 0.003264
A36: CRUACHAN | B36: Pumped_Storage | C36: Actual | D36: Actual | E36: Actual | F36: Actual | G36: Actual | H36: 0.084281 | I36: 0.096969 | J36: 0.090516 | K36: 0.088673 | L36: 0.071914 | M36: 0.087823
A37: CRYSTAL RIG II | B37: Onshore_Wind | C37: Actual | D37: Actual | E37: Actual | F37: Actual | G37: Actual | H37: 0.406845 | I37: 0.502549 | J37: 0.475958 | K37: 0.483836 | L37: 0.402679 | M37: 0.455546
A38: CRYSTAL RIG III | B38: Onshore_Wind | C38: Generic | D38: Generic | E38: Generic | F38: Generic | G38: Partial | H38: 0 | I38: 0 | J38: 0 | K38: 0 | L38: 0.399503 | M38: 0.362086
A39: DAMHEAD CREEK | B39: CCGT_CHP | C39: Actual | D39: Actual | E39: Actual | F39: Actual | G39: Actual | H39: 0.450617 | I39: 0.771783 | J39: 0.674641 | K39: 0.648983 | L39: 0.681119 | M39: 0.668248
A40: DEESIDE | B40: CCGT_CHP | C40: Actual | D40: Actual | E40: Actual | F40: Actual | G40: Actual | H40: 0.197551 | I40: 0.173035 | J40: 0.139018 | K40: 0.174579 | L40: 0.27109 | M40: 0.181722
A41: DERSALLOCH | B41: Onshore_Wind | C41: Generic | D41: Generic | E41: Generic | F41: Generic | G41: Partial | H41: 0 | I41: 0 | J41: 0 | K41: 0 | L41: 0.337728 | M41: 0.341494
A42: DIDCOT B | B42: CCGT_CHP | C42: Actual | D42: Actual | E42: Actual | F42: Actual | G42: Actual | H42: 0.490134 | I42: 0.186624 | J42: 0.255345 | K42: 0.411389 | L42: 0.501358 | M42: 0.385623
A43: DIDCOT GTS | B43: Gas_Oil | C43: Actual | D43: Actual | E43: Actual | F43: Actual | G43: Actual | H43: 0.00072 | I43: 0.000902 | J43: 0.002843 | K43: 0.004861 | L43: 0.000452 | M43: 0.001488
A44: DINORWIG | B44: Pumped_Storage | C44: Actual | D44: Actual | E44: Actual | F44: Actual | G44: Actual | H44: 0.15099 | I44: 0.150898 | J44: 0.15065 | K44: 0.146353 | L44: 0.159596 | M44: 0.150846
A45: DRAX | B45: Coal | C45: Actual | D45: Actual | E45: Actual | F45: Actual | G45: Actual | H45: 0.824774 | I45: 0.805151 | J45: 0.822149 | K45: 0.76203 | L45: 0.622705 | M45: 0.796443
A46: DUDGEON | B46: Offshore_Wind | C46: Generic | D46: Generic | E46: Generic | F46: Generic | G46: Partial | H46: 0 | I46: 0 | J46: 0 | K46: 0 | L46: 0.424791 | M46: 0.471631
A47: DUNGENESS B | B47: Nuclear | C47: Actual | D47: Actual | E47: Actual | F47: Actual | G47: Actual | H47: 0.598295 | I47: 0.610068 | J47: 0.546917 | K47: 0.707617 | L47: 0.793403 | M47: 0.63866
A48: DUNLAW EXTENSION | B48: Onshore_Wind | C48: Actual | D48: Actual | E48: Actual | F48: Actual | G48: Actual | H48: 0.323771 | I48: 0.348226 | J48: 0.300797 | K48: 0.291203 | L48: 0.265549 | M48: 0.305257
A49: DUNMAGLASS | B49: Onshore_Wind | C49: Generic | D49: Generic | E49: Generic | F49: Generic | G49: Partial | H49: 0 | I49: 0 | J49: 0 | K49: 0 | L49: 0.389713 | M49: 0.358822
A50: EDINBANE WIND | B50: Onshore_Wind | C50: Actual | D50: Actual | E50: Actual | F50: Actual | G50: Actual | H50: 0.293933 | I50: 0.394785 | J50: 0.312458 | K50: 0.355937 | L50: 0.325009 | M50: 0.331135
A51: EGGBOROUGH | B51: Coal | C51: Actual | D51: Actual | E51: Actual | F51: Actual | G51: Partial | H51: 0.726884 | I51: 0.721843 | J51: 0.457421 | K51: 0.270157 | L51: 0.397693 | M51: 0.635383
A52: ERROCHTY | B52: Hydro | C52: Actual | D52: Actual | E52: Actual | F52: Actual | G52: Actual | H52: 0.145869 | I52: 0.282628 | J52: 0.253585 | K52: 0.281507 | L52: 0.161775 | M52: 0.232289
A53: EWE HILL | B53: Onshore_Wind | C53: Generic | D53: Generic | E53: Generic | F53: Generic | G53: Partial | H53: 0 | I53: 0 | J53: 0 | K53: 0 | L53: 0.333314 | M53: 0.340023
A54: FALLAGO | B54: Onshore_Wind | C54: Partial | D54: Actual | E54: Actual | F54: Actual | G54: Actual | H54: 0.329869 | I54: 0.548683 | J54: 0.447267 | K54: 0.557992 | L54: 0.432176 | M54: 0.517981
A55: FARR WINDFARM TOMATIN | B55: Onshore_Wind | C55: Actual | D55: Actual | E55: Actual | F55: Actual | G55: Actual | H55: 0.340149 | I55: 0.447212 | J55: 0.385712 | K55: 0.409963 | L55: 0.341766 | M55: 0.379147
A56: FASNAKYLE G1 & G3 | B56: Hydro | C56: Actual | D56: Actual | E56: Actual | F56: Actual | G56: Actual | H56: 0.221176 | I56: 0.353695 | J56: 0.574834 | K56: 0.531573 | L56: 0.309768 | M56: 0.398345
A57: FAWLEY CHP | B57: CCGT_CHP | C57: Actual | D57: Actual | E57: Actual | F57: Actual | G57: Actual | H57: 0.611362 | I57: 0.633619 | J57: 0.728484 | K57: 0.576978 | L57: 0.632006 | M57: 0.625662
A58: FFESTINIOGG | B58: Pumped_Storage | C58: Actual | D58: Actual | E58: Actual | F58: Actual | G58: Actual | H58: 0.029286 | I58: 0.054631 | J58: 0.043251 | K58: 0.034113 | L58: 0.056749 | M58: 0.043999
A59: FIDDLERS FERRY | B59: Coal | C59: Actual | D59: Actual | E59: Actual | F59: Actual | G59: Actual | H59: 0.616386 | I59: 0.490374 | J59: 0.452435 | K59: 0.274591 | L59: 0.082478 | M59: 0.4058
A60: FINLARIG | B60: Hydro | C60: Actual | D60: Actual | E60: Actual | F60: Actual | G60: Actual | H60: 0.402952 | I60: 0.599142 | J60: 0.594092 | K60: 0.651349 | L60: 0.496402 | M60: 0.563212
A61: FOYERS | B61: Pumped_Storage | C61: Actual | D61: Actual | E61: Actual | F61: Actual | G61: Actual | H61: 0.1348 | I61: 0.147097 | J61: 0.123048 | K61: 0.154323 | L61: 0.113046 | M61: 0.134982
A62: FREASDAIL | B62: Onshore_Wind | C62: Generic | D62: Generic | E62: Generic | F62: Generic | G62: Partial | H62: 0 | I62: 0 | J62: 0 | K62: 0 | L62: 0.3256 | M62: 0.337451
A63: GALAWHISTLE | B63: Onshore_Wind | C63: Generic | D63: Generic | E63: Generic | F63: Generic | G63: Partial | H63: 0 | I63: 0 | J63: 0 | K63: 0 | L63: 0.349764 | M63: 0.345506
A64: GARRY CASCADE | B64: Hydro | C64: Actual | D64: Actual | E64: Actual | F64: Actual | G64: Actual | H64: 0.485993 | I64: 0.559308 | J64: 0.643828 | K64: 0.602772 | L64: 0.610498 | M64: 0.590859
A65: GLANDFORD BRIGG | B65: CCGT_CHP | C65: Actual | D65: Actual | E65: Actual | F65: Actual | G65: Actual | H65: 0.003336 | I65: 0.015673 | J65: 0.005401 | K65: 0.018191 | L65: 0.027682 | M65: 0.013088
A66: GLEN APP | B66: Onshore_Wind | C66: Generic | D66: Generic | E66: Generic | F66: Generic | G66: Partial | H66: 0 | I66: 0 | J66: 0 | K66: 0 | L66: 0.251373 | M66: 0.312709
A67: GLENDOE | B67: Hydro | C67: Actual | D67: Actual | E67: Actual | F67: Actual | G67: Actual | H67: 0.17335 | I67: 0.363802 | J67: 0.323494 | K67: 0.348532 | L67: 0.238605 | M67: 0.303544
A68: GLENMORISTON | B68: Hydro | C68: Actual | D68: Actual | E68: Actual | F68: Actual | G68: Actual | H68: 0.363045 | I68: 0.444594 | J68: 0.487487 | K68: 0.506921 | L68: 0.346709 | M68: 0.431709
A69: GORDONBUSH | B69: Onshore_Wind | C69: Actual | D69: Actual | E69: Actual | F69: Actual | G69: Actual | H69: 0.37893 | I69: 0.465594 | J69: 0.477981 | K69: 0.477161 | L69: 0.504126 | M69: 0.473579
A70: GRAIN | B70: CCGT_CHP | C70: Actual | D70: Actual | E70: Actual | F70: Actual | G70: Actual | H70: 0.25458 | I70: 0.413833 | J70: 0.440031 | K70: 0.397895 | L70: 0.538227 | M70: 0.417253
A71: GRANGEMOUTH | B71: CCGT_CHP | C71: Actual | D71: Actual | E71: Actual | F71: Actual | G71: Actual | H71: 0.528594 | I71: 0.559047 | J71: 0.626168 | K71: 0.598274 | L71: 0.514558 | M71: 0.561972
A72: GREAT YARMOUTH | B72: CCGT_CHP | C72: Actual | D72: Actual | E72: Actual | F72: Actual | G72: Actual | H72: 0.19027 | I72: 0.207409 | J72: 0.186633 | K72: 0.598957 | L72: 0.63512 | M72: 0.332212
A73: GREATER GABBARD OFFSHORE WIND FARM | B73: Offshore_Wind | C73: Actual | D73: Actual | E73: Actual | F73: Actual | G73: Actual | H73: 0.401778 | I73: 0.483038 | J73: 0.421327 | K73: 0.502468 | L73: 0.431132 | M73: 0.445166
A74: GRIFFIN WIND | B74: Onshore_Wind | C74: Actual | D74: Actual | E74: Actual | F74: Actual | G74: Actual | H74: 0.179885 | I74: 0.319566 | J74: 0.313152 | K74: 0.310284 | L74: 0.258228 | M74: 0.293888
A75: GUNFLEET SANDS I | B75: Offshore_Wind | C75: Actual | D75: Actual | E75: Actual | F75: Actual | G75: Actual | H75: 0.501496 | I75: 0.566472 | J75: 0.470132 | K75: 0.50465 | L75: 0.45794 | M75: 0.492093
A76: GUNFLEET SANDS II | B76: Offshore_Wind | C76: Actual | D76: Actual | E76: Actual | F76: Actual | G76: Actual | H76: 0.450132 | I76: 0.522361 | J76: 0.447211 | K76: 0.490521 | L76: 0.439893 | M76: 0.462622
A77: GWYNT Y MOR | B77: Offshore_Wind | C77: Partial | D77: Actual | E77: Actual | F77: Actual | G77: Actual | H77: 0.188535 | I77: 0.080036 | J77: 0.616185 | K77: 0.631276 | L77: 0.448323 | M77: 0.565262
A78: HADYARD HILL | B78: Onshore_Wind | C78: Actual | D78: Actual | E78: Actual | F78: Actual | G78: Actual | H78: 0.276927 | I78: 0.319488 | J78: 0.277635 | K78: 0.366527 | L78: 0.314364 | M78: 0.303829
A79: HARESTANES | B79: Onshore_Wind | C79: Generic | D79: Partial | E79: Actual | F79: Actual | G79: Actual | H79: 0 | I79: 0.222448 | J79: 0.286355 | K79: 0.278093 | L79: 0.225464 | M79: 0.263304
A80: HARTLEPOOL | B80: Nuclear | C80: Actual | D80: Actual | E80: Actual | F80: Actual | G80: Actual | H80: 0.802632 | I80: 0.737557 | J80: 0.562803 | K80: 0.538666 | L80: 0.78039 | M80: 0.693583
A81: HEYSHAM | B81: Nuclear | C81: Actual | D81: Actual | E81: Actual | F81: Actual | G81: Actual | H81: 0.833828 | I81: 0.733628 | J81: 0.688252 | K81: 0.727344 | L81: 0.796169 | M81: 0.75238
A82: HINKLEY POINT B | B82: Nuclear | C82: Actual | D82: Actual | E82: Actual | F82: Actual | G82: Actual | H82: 0.617582 | I82: 0.688664 | J82: 0.701411 | K82: 0.676412 | L82: 0.712265 | M82: 0.688829
A83: HUMBER GATEWAY OFFSHORE WIND FARM | B83: Offshore_Wind | C83: Generic | D83: Generic | E83: Generic | F83: Actual | G83: Actual | H83: 0 | I83: 0 | J83: 0 | K83: 0.629631 | L83: 0.597195 | M83: 0.573959
A84: HUNTERSTON | B84: Nuclear | C84: Actual | D84: Actual | E84: Actual | F84: Actual | G84: Actual | H84: 0.735984 | I84: 0.847953 | J84: 0.791368 | K84: 0.821786 | L84: 0.832939 | M84: 0.815365
A85: IMMINGHAM | B85: CCGT_CHP | C85: Actual | D85: Actual | E85: Actual | F85: Actual | G85: Actual | H85: 0.501793 | I85: 0.378219 | J85: 0.568316 | K85: 0.694686 | L85: 0.71955 | M85: 0.588265
A86: INDIAN QUEENS | B86: Gas_Oil | C86: Actual | D86: Actual | E86: Actual | F86: Actual | G86: Actual | H86: 0.003423 | I86: 0.002321 | J86: 0.000876 | K86: 0.000723 | L86: 0.000847 | M86: 0.001348
A87: KEADBY | B87: CCGT_CHP | C87: Actual | D87: Actual | E87: Generic | F87: Partial | G87: Actual | H87: 0.046125 | I87: 1e-06 | J87: 0 | K87: 0.351858 | L87: 0.286076 | M87: 0.110734
A88: KILBRAUR | B88: Onshore_Wind | C88: Actual | D88: Actual | E88: Actual | F88: Actual | G88: Actual | H88: 0.452306 | I88: 0.513777 | J88: 0.54355 | K88: 0.503807 | L88: 0.465342 | M88: 0.494309
A89: KILGALLIOCH | B89: Onshore_Wind | C89: Generic | D89: Generic | E89: Generic | F89: Generic | G89: Partial | H89: 0 | I89: 0 | J89: 0 | K89: 0 | L89: 0.252739 | M89: 0.313164
A90: KILLIN CASCADE | B90: Hydro | C90: Actual | D90: Actual | E90: Actual | F90: Actual | G90: Actual | H90: 0.323429 | I90: 0.455356 | J90: 0.448205 | K90: 0.532348 | L90: 0.274962 | M90: 0.408997
A91: KILLINGHOLME (NP) | B91: CCGT_CHP | C91: Actual | D91: Actual | E91: Actual | F91: Generic | G91: Generic | H91: 0.106552 | I91: 0.074217 | J91: 0.116191 | K91: 0 | L91: 0 | M91: 0.098987
A92: KILLINGHOLME (POWERGEN) | B92: Gas_Oil | C92: Generic | D92: Generic | E92: Generic | F92: Generic | G92: Generic | H92: 0 | I92: 0 | J92: 0 | K92: 0 | L92: 0 | M92: 0
A93: KINGS LYNN A | B93: CCGT_CHP | C93: Actual | D93: Actual | E93: Actual | F93: Generic | G93: Generic | H93: 3e-06 | I93: 0 | J93: 0 | K93: 0 | L93: 0 | M93: 1e-06
A94: LANGAGE | B94: CCGT_CHP | C94: Actual | D94: Actual | E94: Actual | F94: Actual | G94: Actual | H94: 0.419115 | I94: 0.408749 | J94: 0.348629 | K94: 0.16531 | L94: 0.445413 | M94: 0.392164
A95: LINCS WIND FARM | B95: Offshore_Wind | C95: Partial | D95: Actual | E95: Actual | F95: Actual | G95: Actual | H95: 0.203244 | I95: 0.465987 | J95: 0.438178 | K95: 0.491306 | L95: 0.445192 | M95: 0.467495
A96: LITTLE BARFORD | B96: CCGT_CHP | C96: Actual | D96: Actual | E96: Actual | F96: Actual | G96: Actual | H96: 0.163807 | I96: 0.336286 | J96: 0.496644 | K96: 0.399829 | L96: 0.648597 | M96: 0.41092
A97: LOCHLUICHART | B97: Onshore_Wind | C97: Generic | D97: Partial | E97: Actual | F97: Actual | G97: Actual | H97: 0 | I97: 0.249397 | J97: 0.202103 | K97: 0.292663 | L97: 0.316897 | M97: 0.270554
A98: LONDON ARRAY | B98: Offshore_Wind | C98: Partial | D98: Actual | E98: Actual | F98: Actual | G98: Actual | H98: 0.38952 | I98: 0.512703 | J98: 0.64088 | K98: 0.668682 | L98: 0.536245 | M98: 0.615269
A99: LYNEMOUTH | B99: Coal | C99: Generic | D99: Generic | E99: Generic | F99: Partial | G99: Generic | H99: 0 | I99: 0 | J99: 0 | K99: 0.680196 | L99: 0 | M99: 0.586875
A100: MARCHWOOD | B100: CCGT_CHP | C100: Actual | D100: Actual | E100: Actual | F100: Actual | G100: Actual | H100: 0.433537 | I100: 0.486845 | J100: 0.664021 | K100: 0.550879 | L100: 0.754248 | M100: 0.567248
A101: MARK HILL | B101: Onshore_Wind | C101: Actual | D101: Actual | E101: Actual | F101: Actual | G101: Actual | H101: 0.301675 | I101: 0.302863 | J101: 0.267942 | K101: 0.340227 | L101: 0.219653 | M101: 0.290827
A102: MEDWAY | B102: CCGT_CHP | C102: Actual | D102: Actual | E102: Actual | F102: Actual | G102: Actual | H102: 0.010718 | I102: 0.145545 | J102: 0.280962 | K102: 0.341799 | L102: 0.351505 | M102: 0.256102
A103: MILLENNIUM | B103: Onshore_Wind | C103: Actual | D103: Actual | E103: Actual | F103: Actual | G103: Actual | H103: 0.421318 | I103: 0.526618 | J103: 0.532636 | K103: 0.484038 | L103: 0.449764 | M103: 0.486806
A104: NANT | B104: Hydro | C104: Actual | D104: Actual | E104: Actual | F104: Actual | G104: Actual | H104: 0.208965 | I104: 0.355883 | J104: 0.36404 | K104: 0.373788 | L104: 0.30635 | M104: 0.342091
A105: ORMONDE | B105: Offshore_Wind | C105: Partial | D105: Actual | E105: Actual | F105: Actual | G105: Actual | H105: 0.488406 | I105: 0.496561 | J105: 0.428711 | K105: 0.471986 | L105: 0.412188 | M105: 0.465753
A106: PEMBROKE | B106: CCGT_CHP | C106: Actual | D106: Actual | E106: Actual | F106: Actual | G106: Actual | H106: 0.615434 | I106: 0.603928 | J106: 0.675346 | K106: 0.645596 | L106: 0.776478 | M106: 0.645459
A107: PEN Y CYMOEDD | B107: Onshore_Wind | C107: Generic | D107: Generic | E107: Generic | F107: Generic | G107: Partial | H107: 0 | I107: 0 | J107: 0 | K107: 0 | L107: 0.269446 | M107: 0.318733
A108: PETERBOROUGH | B108: CCGT_CHP | C108: Actual | D108: Actual | E108: Actual | F108: Partial | G108: Actual | H108: 0.009506 | I108: 0.018311 | J108: 0.010929 | K108: 0.041032 | L108: 0.017914 | M108: 0.015718
A109: PETERHEAD | B109: CCGT_CHP | C109: Actual | D109: Actual | E109: Actual | F109: Actual | G109: Actual | H109: 0.313766 | I109: 0.418811 | J109: 0.004858 | K109: 0.233813 | L109: 0.422292 | M109: 0.32213
A110: RACE BANK | B110: Offshore_Wind | C110: Generic | D110: Generic | E110: Generic | F110: Generic | G110: Partial | H110: 0 | I110: 0 | J110: 0 | K110: 0 | L110: 0.453062 | M110: 0.481055
A111: RATCLIFFE-ON-SOAR | B111: Coal | C111: Actual | D111: Actual | E111: Actual | F111: Actual | G111: Actual | H111: 0.667461 | I111: 0.717403 | J111: 0.561767 | K111: 0.196814 | L111: 0.154657 | M111: 0.475347
A112: ROBIN RIGG EAST | B112: Offshore_Wind | C112: Actual | D112: Actual | E112: Actual | F112: Actual | G112: Actual | H112: 0.374157 | I112: 0.467562 | J112: 0.553209 | K112: 0.5197 | L112: 0.505096 | M112: 0.497453
A113: ROBIN RIGG WEST | B113: Offshore_Wind | C113: Actual | D113: Actual | E113: Actual | F113: Actual | G113: Actual | H113: 0.382254 | I113: 0.480629 | J113: 0.53415 | K113: 0.560881 | L113: 0.515383 | M113: 0.510054
A114: ROCKSAVAGE | B114: CCGT_CHP | C114: Actual | D114: Actual | E114: Actual | F114: Actual | G114: Actual | H114: 0.41482 | I114: 0.026155 | J114: 0.044252 | K114: 0.198061 | L114: 0.586806 | M114: 0.219044
A115: RYE HOUSE | B115: CCGT_CHP | C115: Actual | D115: Actual | E115: Actual | F115: Actual | G115: Actual | H115: 0.107188 | I115: 0.074695 | J115: 0.053701 | K115: 0.077906 | L115: 0.156538 | M115: 0.086596
A116: SALTEND | B116: CCGT_CHP | C116: Actual | D116: Actual | E116: Actual | F116: Actual | G116: Actual | H116: 0.815834 | I116: 0.690062 | J116: 0.679518 | K116: 0.556228 | L116: 0.774019 | M116: 0.714533
A117: SEABANK | B117: CCGT_CHP | C117: Actual | D117: Actual | E117: Actual | F117: Actual | G117: Actual | H117: 0.152311 | I117: 0.182781 | J117: 0.256956 | K117: 0.272136 | L117: 0.416815 | M117: 0.237291
A118: SELLAFIELD | B118: CCGT_CHP | C118: Actual | D118: Actual | E118: Actual | F118: Actual | G118: Actual | H118: 0.140549 | I118: 0.250221 | J118: 0.189719 | K118: 0.28679 | L118: 0.198588 | M118: 0.212842
A119: SEVERN POWER | B119: CCGT_CHP | C119: Actual | D119: Actual | E119: Actual | F119: Actual | G119: Actual | H119: 0.277976 | I119: 0.324163 | J119: 0.246354 | K119: 0.183226 | L119: 0.644246 | M119: 0.282831
A120: SHERINGHAM SHOAL | B120: Offshore_Wind | C120: Actual | D120: Actual | E120: Actual | F120: Actual | G120: Actual | H120: 0.366431 | I120: 0.493517 | J120: 0.462286 | K120: 0.536184 | L120: 0.469715 | M120: 0.475173
A121: SHOREHAM | B121: CCGT_CHP | C121: Actual | D121: Actual | E121: Actual | F121: Actual | G121: Actual | H121: 0 | I121: 0.207501 | J121: 0.102239 | K121: 0.489514 | L121: 0.689863 | M121: 0.266418
A122: SIZEWELL B | B122: Nuclear | C122: Actual | D122: Actual | E122: Actual | F122: Actual | G122: Actual | H122: 0.96726 | I122: 0.825051 | J122: 0.847924 | K122: 0.987826 | L122: 0.816359 | M122: 0.880078
A123: SLOY G2 & G3 | B123: Hydro | C123: Actual | D123: Actual | E123: Actual | F123: Actual | G123: Actual | H123: 0.091252 | I123: 0.143471 | J123: 0.155941 | K123: 0.139439 | L123: 0.081782 | M123: 0.124721
A124: SOUTH HUMBER BANK | B124: CCGT_CHP | C124: Actual | D124: Actual | E124: Actual | F124: Actual | G124: Actual | H124: 0.279763 | I124: 0.243373 | J124: 0.344673 | K124: 0.486753 | L124: 0.553419 | M124: 0.370396
A125: SPALDING | B125: CCGT_CHP | C125: Actual | D125: Actual | E125: Actual | F125: Actual | G125: Actual | H125: 0.346976 | I125: 0.3348 | J125: 0.393092 | K125: 0.479407 | L125: 0.609748 | M125: 0.406492
A126: STAYTHORPE | B126: CCGT_CHP | C126: Actual | D126: Actual | E126: Actual | F126: Actual | G126: Actual | H126: 0.544117 | I126: 0.376216 | J126: 0.566148 | K126: 0.694422 | L126: 0.657791 | M126: 0.589352
A127: STRATHY NORTH & SOUTH | B127: Onshore_Wind | C127: Generic | D127: Generic | E127: Generic | F127: Partial | G127: Actual | H127: 0 | I127: 0 | J127: 0 | K127: 0.49634 | L127: 0.361987 | M127: 0.400568
A128: SUTTON BRIDGE | B128: CCGT_CHP | C128: Actual | D128: Actual | E128: Actual | F128: Actual | G128: Actual | H128: 0.201652 | I128: 0.094124 | J128: 0.172025 | K128: 0.131999 | L128: 0.380184 | M128: 0.168559
A129: TAYLORS LANE | B129: Gas_Oil | C129: Actual | D129: Actual | E129: Actual | F129: Actual | G129: Actual | H129: 0.002037 | I129: 0.000483 | J129: 0.00064 | K129: 0.001708 | L129: 0.008047 | M129: 0.001462
A130: THANET OFFSHORE WIND FARM | B130: Offshore_Wind | C130: Actual | D130: Actual | E130: Actual | F130: Actual | G130: Actual | H130: 0.411093 | I130: 0.397489 | J130: 0.355935 | K130: 0.413434 | L130: 0.337132 | M130: 0.388172
A131: TODDLEBURN | B131: Onshore_Wind | C131: Actual | D131: Actual | E131: Actual | F131: Actual | G131: Actual | H131: 0.327175 | I131: 0.395374 | J131: 0.337211 | K131: 0.350823 | L131: 0.313435 | M131: 0.338403
A132: TORNESS | B132: Nuclear | C132: Actual | D132: Actual | E132: Actual | F132: Actual | G132: Actual | H132: 0.848669 | I132: 0.864669 | J132: 0.914945 | K132: 0.857725 | L132: 0.979942 | M132: 0.879113
A133: USKMOUTH | B133: Coal | C133: Actual | D133: Actual | E133: Partial | F133: Actual | G133: Actual | H133: 0.451938 | I133: 0.389899 | J133: 0.469428 | K133: 0.255184 | L133: 0.243304 | M133: 0.365674
A134: WALNEY I | B134: Offshore_Wind | C134: Actual | D134: Actual | E134: Actual | F134: Actual | G134: Actual | H134: 0.442799 | I134: 0.577046 | J134: 0.520555 | K134: 0.507535 | L134: 0.474617 | M134: 0.500902
A135: WALNEY II | B135: Offshore_Wind | C135: Partial | D135: Actual | E135: Actual | F135: Actual | G135: Actual | H135: 0.547907 | I135: 0.619219 | J135: 0.582355 | K135: 0.357988 | L135: 0.549727 | M135: 0.583767
A136: WEST BURTON | B136: Coal | C136: Actual | D136: Actual | E136: Actual | F136: Actual | G136: Actual | H136: 0.705868 | I136: 0.689176 | J136: 0.615364 | K136: 0.327325 | L136: 0.101071 | M136: 0.543955
A137: WEST BURTON B | B137: CCGT_CHP | C137: Partial | D137: Actual | E137: Actual | F137: Actual | G137: Actual | H137: 0.213299 | I137: 0.303021 | J137: 0.468421 | K137: 0.593477 | L137: 0.542878 | M137: 0.534925
A138: WEST OF DUDDON SANDS OFFSHORE WIND FARM | B138: Offshore_Wind | C138: Generic | D138: Partial | E138: Actual | F138: Actual | G138: Actual | H138: 0 | I138: 0.404447 | J138: 0.400506 | K138: 0.48754 | L138: 0.487691 | M138: 0.458579
A139: WESTERMOST ROUGH | B139: Offshore_Wind | C139: Generic | D139: Generic | E139: Partial | F139: Actual | G139: Actual | H139: 0 | I139: 0 | J139: 0.2629 | K139: 0.548014 | L139: 0.581061 | M139: 0.463992
A140: WHITELEE | B140: Onshore_Wind | C140: Actual | D140: Actual | E140: Actual | F140: Actual | G140: Actual | H140: 0.282265 | I140: 0.351074 | J140: 0.298105 | K140: 0.318773 | L140: 0.272893 | M140: 0.299714
A141: WHITELEE EXTENSION | B141: Onshore_Wind | C141: Actual | D141: Actual | E141: Actual | F141: Actual | G141: Actual | H141: 0.124146 | I141: 0.270102 | J141: 0.277787 | K141: 0.267655 | L141: 0.235253 | M141: 0.25767
A142: WILTON | B142: CCGT_CHP | C142: Actual | D142: Actual | E142: Actual | F142: Actual | G142: Actual | H142: 0.034258 | I142: 0.044941 | J142: 0.215867 | K142: 0.161379 | L142: 0.14413 | M142: 0.116817

Sheet T24
A1: Table 24 - Generic Annual Load Factors | E1: Return to Index
A4: Technology | B4: Generic ALF
A5: Gas_Oil | B5: 0.00189
A6: Pumped_Storage | B6: 0.104412
A7: Tidal | B7: 0.189
A8: Biomass | B8: 0.268847
A9: Wave | B9: 0.31
A10: Onshore_Wind | B10: 0.343377
A11: CCGT_CHP | B11: 0.432127
A12: Hydro | B12: 0.413656
A13: Offshore_Wind | B13: 0.495051
A14: Coal | B14: 0.540215
A15: Nuclear | B15: 0.764001

Sheet T25
A1: Table 25 - Generation Contracted TEC Changes | E1: Return to Index
A4: Power Station | B4: Node | C4: MW Change | D4: Generation Zone
A5: Blacklaw Extension | B5: -9 | C5: BLKX10 | D5: 11
A6: Cowes | B6: 140 | C6: FAWL40 | D6: 26
A7: Didcot B | B7: -100 | C7: DIDC40 | D7: 25
A8: Liberty Steel Dalzell | B8: 18 | C8: WISH10 | D8: 11
A9: Morlais | B9: 120 | C9: WYLF40 | D9: 19
A10: Neart Na Gaoithe Offshore Wind Farm | B10: -450 | C10: CRYR40 | D10: 11
A11: Beinn an Tuirc 3 | B11: -50 | C11: CAAD1Q | D11: 7
A12: Sizewell C | B12: -1670 | C12: SIZE40 | D12: 18

Sheet T26
A1: Table 26 - Indicative National Grid Revenue Forecast | I1: Return to Index
A4: Description | I4: Notes
A5: Regulatory Year | C5: Licence Term | D5: 2018/19 (fixed forecast) | E5: Initial Forecast | F5: April Forecast | G5: June Forecast | H5: Nov Draft
A6: Actual RPI | I6: April to March average
A7: RPI Actual | C7: RPIAt | I7: Office of National Statistics
A8: Assumed Interest Rate | C8: It | D8: 0.00705 | E8: 0.005625 | F8: 0.0116 | G8: 0.0116 | I8: Bank of England Base Rate
A9: Opening Base Revenue Allowance (2009/10 prices) | B9: A1 | C9: PUt | D9: 1587.627 | E9: 1585.228 | F9: 1585.228 | G9: 1585.228 | I9: From Licence
A10: Price Control Financial Model Iteration Adjustment | B10: A2 | C10: MODt | D10: -310.2408409 | E10: -334 | F10: -334 | G10: -334 | I10: Forecast
A11: RPI True Up | B11: A3 | C11: TRUt | D11: -6.084594215 | E11: 3.265636418 | F11: 3.265636418 | G11: 3.265636418 | I11: Forecast
A12: Prior Calendar Year RPI Forecast | C12: GRPIFc-1 | D12: 0.036 | E12: 0.035 | F12: 0.035 | G12: 0.035 | I12: HM Treasury Forecast
A13: Current Calendar Year RPI Forecast | C13: GRPIFc | D13: 0.034 | E13: 0.03 | F13: 0.03 | G13: 0.03 | I13: HM Treasury Forecast
A14: Next Calendar Year RPI forecast | C14: GRPIFc+1 | D14: 0.031 | E14: 0.03 | F14: 0.03 | G14: 0.03 | I14: HM Treasury Forecast
A15: RPI Forecast | B15: A4 | C15: RPIFt | D15: 1.314 | E15: 1.357 | F15: 1.357 | G15: 1.357 | I15: Using HM Treasury Forecast
A16: Base Revenue [A=(A1+A2+A3)*A4] | B16: A | C16: BRt | D16: =SUM(D9:D11)*D15 -> 1670.490256 | E16: 1702.347865 | F16: =SUM(F9:F11)*F15 -> 1702.347865 | G16: =SUM(G9:G11)*G15 -> 1702.347865
A17: Pass-Through Business Rates | B17: B1 | C17: RBt | D17: 1.563034475 | E17: 35.12526409 | F17: 0.0003830462655 | G17: 0.0003830462655 | I17: Forecast
A18: Temporary Physical Disconnection | B18: B2 | C18: TPDt | D18: 0.7084275587 | E18: 0 | F18: 0 | G18: 0 | I18: Forecast
A19: Licence Fee | B19: B3 | C19: LFt | D19: -0.3766395763 | E19: 4.540533516 | F19: 0 | G19: 0 | I19: Forecast
A20: Inter TSO Compensation | B20: B4 | C20: ITCt | D20: 1.344774379 | E20: 0.766092531 | F20: 0 | G20: 0 | I20: Forecast
A21: Termination of Bilateral Connection Agreements | B21: B5 | C21: TERMt | D21: 0 | E21: 0 | F21: 0 | G21: 0 | I21: Forecast
A22: SP Transmission Pass-Through | B22: B6 | C22: TSPt | D22: 349.9608532 | E22: 389.9761144 | F22: 389.9621123 | G22: 389.9621123 | I22: Forecast
A23: SHE Transmission Pass-Through | B23: B7 | C23: TSHt | D23: 366.411 | E23: 349.3868271 | F23: 349.3868271 | G23: 349.3868271 | I23: Forecast
A24: Offshore Transmission Pass-Through | B24: B8 | C24: TOFTOt | D24: 318.1438119 | E24: 459.8616268 | F24: 386.4787867 | G24: 387.439852 | I24: Forecast
A25: Embedded Offshore Pass-Through | B25: B9 | C25: OFETt | D25: 0.5498180205 | E25: 0.5673921124 | F25: 0.5678105432 | G25: 0.5678105432 | I25: Forecast
A26: Interconnectors Cap&Floor Revenue Adjustment | B26: B10 | C26: TICFt | D26: -6.8 | F26: -6.8 | G26: -6.8 | I26: Forecast
A27: Pass-Through Items [B=B1+B2+B3+B4+B5+B6+B7+B8+B9+B10] | B27: B | C27: PTt | D27: =SUM(D17:D26) -> 1031.50508 | E27: =SUM(E17:E26) -> 1240.223851 | F27: =SUM(F17:F26) -> 1119.59592 | G27: =SUM(G17:G26) -> 1120.556985
A28: Reliability Incentive Adjustment | B28: C1 | C28: RIt | D28: 4.135796856 | E28: 4.241545547 | F28: 4.241545547 | G28: 4.241545547 | I28: Forecast
A29: Stakeholder Satisfaction Adjustment | B29: C2 | C29: SSOt | D29: 9.276440124 | E29: 8.583271203 | F29: 8.616999315 | G29: 8.616999315 | I29: Forecast
A30: Sulphur Hexafluoride (SF6) Gas Emissions Adjustment | B30: C3 | C30: SFIt | D30: 1.434066097 | E30: 1.622973998 | F30: 1.622973998 | G30: 1.622973998 | I30: Forecast
A31: Outputs Incentive Revenue [C=C1+C2+C3+C4] | B31: C | C31: OIPt | D31: =SUM(D28:D30) -> 14.84630308 | E31: =SUM(E28:E30) -> 14.44779075 | F31: =SUM(F28:F30) -> 14.48151886 | G31: =SUM(G28:G30) -> 14.48151886
A32: Network Innovation Allowance | B32: D | C32: NIAt | D32: 10.52408861 | E32: 10.72479155 | F32: 10.72479155 | G32: 10.72479155 | I32: Forecast
A33: Network Innovation Competition | B33: E | C33: NICFt | D33: 32.66440404 | E33: 40.5 | F33: 32.66440404 | G33: 32.66440404 | I33: Forecast
A34: Future Environmental Discretionary Rewards | B34: F | C34: EDRt | D34: 0 | E34: 2 | F34: 0 | G34: 0 | I34: Forecast
A35: Transmission Investment for Renewable Generation | B35: G | C35: TIRGt | D35: 0 | E35: 0 | F35: 0 | G35: 0 | I35: Forecast
A36: Scottish Site Specific Adjustment | B36: H | C36: DISt | D36: 6.648 | E36: 0 | F36: 0 | G36: 0 | I36: Forecast
A37: Scottish Terminations Adjustment | B37: I | C37: TSt | D37: 3.071 | E37: 0 | F37: 0 | G37: 0 | I37: Forecast
A38: Correction Factor | B38: K | C38: -Kt | D38: -55.45109285 | E38: 0 | F38: 0 | G38: 42.49662099 | I38: Calculated by Licensee
A39: Maximum Revenue [M= A+B+C+D+E+F+G+H+I+K] | B39: M | C39: TOt | D39: =D16+D27+D31+D32+D33+D34+D35+D36+D37+D38 -> 2714.298039 | E39: =E16+E27+E32+E33+E34+E35+E36+E37+E38+E31 -> 3010.244297 | F39: =F16+F27+F31+F32+F33+F34+F35+F36+F37+F38 -> 2879.814499 | G39: =G16+G27+G31+G32+G33+G34+G35+G36+G37+G38 -> 2923.272185
A40: Pre-vesting connection charges | B40: P | D40: 44.002401 | E40: 41.8826124 | F40: 44.002401 | G40: 44.002401 | I40: Forecast
A41: TNUoS Collected Revenue [T=M-B5-P] | B41: T | D41: =D39-D40 -> 2670.295638 | E41: =E39-E40 -> 2968.361685 | F41: =F39-F40 -> 2835.812098 | G41: =G39-G40 -> 2879.269784
A43: Notes:

Sheet T27
A1: Table 27 - Offshore Revenues | H1: Return to Index
A3: Offshore Transmission Revenue Forecast (£m) | B3: 2018-04-23
H4: Notes
A5: Regulatory Year | B5: 2014/15 | C5: 2015/16 | D5: 2016/17 | E5: 2017/18 | F5: 2018/19 | G5: 2019/20
A6: Barrow | B6: 5.475948387 | C6: 5.605119166 | D6: 5.656283019 | E6: 5.872496367 | F6: 6.250052539 | G6: 6.169489499 | H6: Current revenues plus indexation
A7: Gunfleet | B7: 6.853152423 | C7: 7.014459018 | D7: 7.080594599 | E7: 7.432422281 | F7: 7.801752691 | G7: 7.720508862 | H7: Current revenues plus indexation
A8: Walney 1 | B8: 12.49105951 | C8: 12.78636456 | D8: 12.90184157 | E8: 13.13609825 | F8: 13.60716746 | G8: 14.06912925 | H8: Current revenues plus indexation
A9: Robin Rigg | B9: 7.709472064 | C9: 7.891440662 | D9: 7.993308366 | E9: 8.367306563 | F9: 8.748852974 | G9: 8.68857369 | H9: Current revenues plus indexation
A10: Walney 2 | B10: 12.92696073 | C10: 13.23221075 | D10: 12.51589741 | E10: 12.29931316 | F10: 16.32580671 | G10: 14.56479844 | H10: Current revenues plus indexation
A11: Sheringham Shoal | B11: 18.92412411 | C11: 19.49893387 | D11: 19.72766462 | E11: 20.02531234 | F11: 20.74277833 | G11: 21.44781801 | H11: Current revenues plus indexation
A12: Ormonde | B12: 11.57050189 | C12: 11.84309117 | D12: 11.95215008 | E12: 12.15604428 | F12: 12.59369632 | G12: 13.02221402 | H12: Current revenues plus indexation
A13: Greater Gabbard | B13: 25.9995199 | C13: 26.61925023 | D13: 26.87143257 | E13: 27.3092326 | F13: 28.3875676 | G13: 29.31979218 | H13: Current revenues plus indexation
A14: London Array | B14: 37.57295282 | C14: 39.2120985 | D14: 39.49870272 | E14: 39.51888334 | F14: 41.77261774 | G14: 41.35299012 | H14: Current revenues plus indexation
A15: Thanet | B15: 78.85668167 | C15: 17.51705273 | D15: 15.69984448 | E15: 19.5121928 | F15: 18.62320211 | G15: 19.17856201 | H15: Current revenues plus indexation
A16: Lincs | C16: 25.56339384 | D16: 26.68704214 | E16: 27.18814554 | F16: 28.16936445 | G16: 27.71735291 | H16: Current revenues plus indexation
A17: Gwynt y mor | C17: 26.28358513 | D17: 23.6461166 | E17: 29.34287447 | F17: 32.73080929 | G17: 28.99311309 | H17: Current revenues plus indexation
A18: West of Duddon Sands | C18: 35.2899996 | D18: 21.27389291 | E18: 22.04538798 | F18: 22.57265006 | G18: 23.28942713 | H18: Current revenues plus indexation
A19: Humber Gateway | D19: 29.28454151 | E19: 9.749899087 | F19: 12.14541511 | G19: 12.04732754 | H19: Current revenues plus indexation
A20: Westermost Rough | E20: 11.57669261 | F20: 13.19733993 | G20: 13.48288909 | H20: Current revenues plus indexation
A21: Burbo Bank | F21: 34.27592625 | G21: 57.42912671 | H21: National Grid Forecast
A22: Dudgeon | H22: National Grid Forecast
A23: Race Bank | H23: National Grid Forecast
A24: Forecast to asset transfer to OFTO in 2019/20 | G24: 48.94673949 | H24: National Grid Forecast
A25: Offshore Transmission Pass-Through (B7) | B25: =SUM(B6:B24) -> 218.3803735 | C25: 248.3569992 | D25: 260.7893126 | E25: 265.5323017 | F25: 317.9449996 | G25: 387.439852
A28: Notes:
A29: Figures for historic years represent National Grid's forecast of OFTO revenues at the time final tariffs were calculated for each charging year rather than our current best view.
A30: Licensee forecasts and budgets are subject to change especially where they are influenced by external stakeholders
A31: Greyed out cells are either calculated or not applicable in the year concerned due to the way the licence formula are constructed
A32: NIC payments are not included as they do not form part of OFTO Maximum Revenue
